Workbook

Sheet Data
V1: 2015-03-01
C2: Income Tax 2015-16 designed by Ch Nagendra Rao,SA(Maths), Cell : 9440297273 | H2: 1 | V2: 2015-04-01
C3: 1.We have to fill up the items in the Green colour boxes using "TAB" button 2.Fillup Employee ID NO, then click "Submit" button compulsory.Dates should be in the form of MM-DD-YYYY 3.Read the fields carefully and click on "Yes" or "No" buttons which is applicable to you. 4.At the end of this sheet please click "Submit" button compulsory 5.In "house rent receipt" sheet; Door No, place, Address should be noted manually. | H3: 2
B4: 1 | C4: Employee ID NO (ID given by the Treasury ) : | D4: 0926013 | H4: 3 | I4: 2015-03-01 | J4: =IF(AND(I4>=SalaryParticulars!$AO$4,I4<SalaryParticulars!$AI$2),Data!$F$39,LOOKUP(I4,SalaryParticulars!$AI$1:$AI$5,SalaryParticulars!$AJ$1:$AJ$5)) -> 16600 | K4: =IF(I4=$V$1,77.896,IF(I4>=$G$22,$I$22,IF(I4>=$G$21,$I$21,IF(I4>=$F$21,$I$19,0)))) -> 77.896 | L4: =E24 -> 12 | M4: =IF(I4>=$F$22,$I$22,IF(I4>=$F$21,$I$21,$I$19)) -> 8.908
C5: Name of the Teacher/Employee | E5: G.Venugopal | H5: 4 | I5: 2015-04-01 | J5: =IF(AND(I5>=SalaryParticulars!$AO$4,I5<SalaryParticulars!$AI$2),Data!$F$39,LOOKUP(I5,SalaryParticulars!$AI$1:$AI$5,SalaryParticulars!$AJ$1:$AJ$5)) -> 35120 | K5: =IF(I5=$V$1,77.896,IF(I5>=$G$22,$I$22,IF(I5>=$G$21,$I$21,IF(I5>=$F$21,$I$19,0)))) -> 8.908 | L5: =IF(I5>=$F$25,E25,L4) -> 14.5 | M5: 8.908 | N5: =ROUND(J5*M5%,0)-ROUND(J5*K5%,0) -> 0 | O5: =IF(I5>$K$22,(ROUND(J5*$I$22%,0)-ROUND(J5*$I$22%,0)),IF(I5>=$F$22,(ROUND(J5*$I$22%,0)-ROUND(J5*$I$21%,0)),IF(I5>$K$21,(ROUND(J5*$I$21%,0)-ROUND(J5*$I$21%,0)),(ROUND(J5*$I$21%,0)-ROUND(J5*$I$19%,0))))) -> 0 | P5: =$I$21 -> 8.908 | Q5: =IF(I5>$E$21,$I$21,$I$19) -> 8.908 | R5: =ROUND(J5*P5%,0)-ROUND(J5*Q5%,0) -> 0 | S5: =IF(I5>=$D$22,$I$22,0) -> 0 | T5: =IF(I5>$E$22,$I$22,IF(I5>=$D$22,P5,0)) -> 0 | U5: =ROUND(J5*S5%,0)-ROUND(J5*T5%,0) -> 0
C6: Design | E6: SGT | H6: 5 | I6: 2015-05-01 | J6: =IF(AND(I6>=SalaryParticulars!$AO$4,I6<SalaryParticulars!$AI$2),Data!$F$39,LOOKUP(I6,SalaryParticulars!$AI$1:$AI$5,SalaryParticulars!$AJ$1:$AJ$5)) -> 35120 | K6: 8.908 | L6: =IF(I6>=$F$25,E26,L5) -> 0 | M6: 8.908 | N6: 0 | O6: 0 | P6: 8.908 | Q6: 8.908 | R6: 0 | S6: 0 | T6: 0 | U6: 0
C7: Sex (Male=M, Female=F) | E7: M | H7: 6 | I7: 2015-06-01 | J7: =IF(AND(I7>=SalaryParticulars!$AO$4,I7<SalaryParticulars!$AI$2),Data!$F$39,LOOKUP(I7,SalaryParticulars!$AI$1:$AI$5,SalaryParticulars!$AJ$1:$AJ$5)) -> 35120 | K7: 8.908 | L7: Not Applicable | M7: 8.908 | N7: 0 | O7: 0 | P7: 8.908 | Q7: 8.908 | R7: 0 | S7: 0 | T7: 0 | U7: 0 | AB7: Medical Insurance premium U/S. 80-D | AD7: LIC Premium (Salary Deduction) per month
C8: Official Address | D8: School Name | E8: MPP School | H8: 7 | I8: 2015-07-01 | J8: =IF(AND(I8>=SalaryParticulars!$AO$4,I8<SalaryParticulars!$AI$2),Data!$F$39,LOOKUP(I8,SalaryParticulars!$AI$1:$AI$5,SalaryParticulars!$AJ$1:$AJ$5)) -> 35120 | K8: 8.908 | L8: above 40% | M8: 8.908 | N8: 0 | O8: 0 | P8: 8.908 | Q8: 8.908 | R8: 0 | S8: 8.908 | T8: 8.908 | U8: 0 | AB8: Treatment of Handicapped Dependent U/S.80-DD | AD8: LIC (Others) per year
D9: Village | E9: NN Colony, Dhone | H9: 8 | I9: 2015-08-01 | J9: =IF(AND(I9>=SalaryParticulars!$AO$4,I9<SalaryParticulars!$AI$2),Data!$F$39,LOOKUP(I9,SalaryParticulars!$AI$1:$AI$5,SalaryParticulars!$AJ$1:$AJ$5)) -> 36070 | K9: 8.908 | L9: 15 | M9: 8.908 | N9: 0 | O9: 0 | P9: 8.908 | Q9: 8.908 | R9: 0 | S9: 8.908 | T9: 8.908 | U9: 0 | AB9: Expenditure on Medical Treatment of Dependent U/S.80-DDB | AD9: Subscription to NSC VIII issue
D10: Mandal | E10: Mandal | H10: 9 | I10: 2015-09-01 | J10: =IF(AND(I10>=SalaryParticulars!$AO$4,I10<SalaryParticulars!$AI$2),Data!$F$39,LOOKUP(I10,SalaryParticulars!$AI$1:$AI$5,SalaryParticulars!$AJ$1:$AJ$5)) -> 36070 | K10: 8.908 | L10: 42339 | M10: 8.908 | N10: 0 | O10: 0 | P10: 8.908 | Q10: 8.908 | R10: 0 | S10: 8.908 | T10: 8.908 | U10: 0 | AB10: Interest Paid on Education Loan ( 80 E ) | AD10: Tuition fee for 2 children
D11: District | E11: Kurnool Dist | H11: 10 | I11: 2015-10-01 | J11: =IF(AND(I11>=SalaryParticulars!$AO$4,I11<SalaryParticulars!$AI$2),Data!$F$39,LOOKUP(I11,SalaryParticulars!$AI$1:$AI$5,SalaryParticulars!$AJ$1:$AJ$5)) -> 36070 | K11: 8.908 | L11: 0 | M11: 8.908 | N11: 0 | O11: 0 | P11: 8.908 | Q11: 8.908 | R11: 0 | S11: 8.908 | T11: 8.908 | U11: 0 | AB11: Donation to Charitable institution U/S.80-G | AD11: Repayment of HBA installments. (Principle Amount)
C12: PAN Number of the Teacher/ Employee | E12: AJVPG9142R | H12: 11 | I12: 2015-11-01 | J12: =IF(AND(I12>=SalaryParticulars!$AO$4,I12<SalaryParticulars!$AI$2),Data!$F$39,LOOKUP(I12,SalaryParticulars!$AI$1:$AI$5,SalaryParticulars!$AJ$1:$AJ$5)) -> 36070 | K12: 8.908 | L12: TO (MM/DD/YYYY) | M12: 8.908 | N12: 0 | O12: =IF(I12>$K$22,(ROUND(J12*$I$22%,0)-ROUND(J12*$I$22%,0)),IF(I12>=$F$22,(ROUND(J12*$I$22%,0)-ROUND(J12*$I$21%,0)),IF(I12>$K$21,(ROUND(J12*$I$21%,0)-ROUND(J12*$I$21%,0)),(ROUND(J12*$I$21%,0)-ROUND(J12*$I$19%,0))))) -> 0 | P12: 8.908 | Q12: =IF(I12>$E$21,$I$21,$I$19) -> 8.908 | R12: 0 | S12: 8.908 | T12: 8.908 | U12: 0 | AB12: Maintenance of Totally Blind or P.H. U/S.80-U | AD12: Premium towards any Annuty/Differed Annuty Plan
B13: 2 | C13: Pay Particulars | H13: 12 | I13: 2015-12-01 | J13: =IF(AND(I13>=SalaryParticulars!$AO$4,I13<SalaryParticulars!$AI$2),Data!$F$39,LOOKUP(I13,SalaryParticulars!$AI$1:$AI$5,SalaryParticulars!$AJ$1:$AJ$5)) -> 36070 | K13: 8.908 | L13: 0 | M13: 8.908 | N13: 0 | O13: 0 | P13: 8.908 | Q13: 8.908 | R13: 0 | S13: 8.908 | T13: 8.908 | U13: 0 | AD13: UTI Retirement Benefit Pension fund.
C14: PAY as on 1-3-2015 ( PRC 2010 PRC 2015) | E14: 16600 | F14: 40 | H14: 1 | I14: 2016-01-01 | J14: =IF(AND(I14>=SalaryParticulars!$AO$4,I14<SalaryParticulars!$AI$2),Data!$F$39,LOOKUP(I14,SalaryParticulars!$AI$1:$AI$5,SalaryParticulars!$AJ$1:$AJ$5)) -> 36070 | K14: 8.908 | L14: 0 | M14: 8.908 | N14: 0 | O14: 0 | P14: 8.908 | Q14: 8.908 | R14: 0 | S14: 8.908 | T14: 8.908 | U14: 0 | AD14: Investment in UTI's ULIP
C15: PPs+FP | H15: 2 | I15: 2016-02-01 | J15: =IF(AND(I15>=SalaryParticulars!$AO$4,I15<SalaryParticulars!$AI$2),Data!$F$39,LOOKUP(I15,SalaryParticulars!$AI$1:$AI$5,SalaryParticulars!$AJ$1:$AJ$5)) -> 36070 | K15: 8.908 | L15: 0 | M15: 8.908 | N15: 0 | O15: 0 | P15: 8.908 | Q15: 8.908 | R15: 0 | S15: 8.908 | T15: 8.908 | U15: 0 | AB15: i) Approved institutions 50% of qualifying amount. | AD15: PLI per year
C16: HMA / Spl Allowance for handling higher subjects | O16: ZPPF | P16: Cash | AD16: Public Provident fund
C17: HMA / Spl Allowance for handling higher subjects as on | D17: 2015-03-01 | AD17: Approved Mutual Fund u/s 10(23D)
C18: If HMA changes after 1-3-2015, date and HMA | AD18: Investment in approved infrastructure bonds
C19: DA | F19: 2016-03-01 | I19: 8.908 | N19: =SUM(R2:R15) -> 0 | O19: =SUMIF(I2:I15,"<="&K21,R2:R15) -> 0 | P19: =N19-O19 -> 0 | AB19: ii) Kargil,National calmatives & PM/CM Relief fund (100%) | AD19: Notified Fixed Deposit of any sheduled Bank/Housing Finance Cor. For not less than 5years.
C20: DA arrears taken | D20: From | E20: DA arrears taken up to | H20: Starting | K20: ZPPF | AD20: Amount invested in 5year Post Office Time Deposite A/C
C21: DA arrears ( 12.052% ) (Nil) | D21: 2015-01-01 | E21: 2015-12-31 | F21: =IF(D21<H21,F19,D21) -> 2015-01-01 | G21: =IF(E21<=H21,F19,E21) -> 2015-12-31 | H21: 2015-01-01 | I21: 8.908 | J21: =MONTH(G21)&"/"&DAY(G21)&"/"&YEAR(G21) -> 12/31/2015 | K21: 2015-11-30 | N21: =SUM(U2:U15) -> 0 | O21: =SUMIF(I2:I15,"<="&K22,U2:U15) -> 0 | P21: =N21-O21 -> 0 | AD21: Amount invested in the Senior Citizen Saving scheme, 2004
C22: DA arrears taken ( 15.196% ) (Nil) | D22: 2015-07-01 | E22: 2016-02-28 | F22: =IF(D22<H22,F19,D22) -> 2015-07-01 | G22: =IF(E22<=H22,F19,E22) -> 2016-02-28 | H22: 2015-07-01 | I22: 8.908 | K22: 2016-01-31
C23: HRA
C24: HRA as on | D24: 2015-03-01 | E24: 12 | I24: 15.196
C25: If HRA changes after 1-3-2015, date and HRA % | D25: 2015-04-01 | E25: 14.5 | F25: =IF(AND(D25>D24,D25<F19),D25,F19) -> 2015-04-01
C26: Other Allowances and SL
C27: Whether CCA applicable | E27: Not Applicable
C28: Whether PHC Allowance applicable, if yes % of disability | D28: No | E28: above 40%
C29: No of ELs Surrendered during the year 2015-2016 | E29: 15
C30: Surrender Leave Month | E30: 2015-12-01
B31: 3 | C31: whether Loss of Pay or Half Pay Leave during this year
C32: LEAVE TYPE | D32: FROM (MM/DD/YYYY) | E32: TO (MM/DD/YYYY)
C33: Half Pay Leave | F33: 2016-03-31 | G33: =IF(D33<$I$4,$F$19,D33) -> 2016-03-01 | H33: =IF(C33="Loss of Pay",0,IF(C33="Half Pay Leave",0.5,1)) -> 0.5
C34: Loss of Pay | G34: =IF(D34<$I$4,$F$19,D34) -> 2016-03-01 | H34: =IF(C34="Loss of Pay",0,IF(C34="Half Pay Leave",0.5,1)) -> 0
G35: =IF(D35<$I$4,$F$19,D35) -> 2016-03-01 | H35: =IF(C35="Loss of Pay",0,IF(C35="Half Pay Leave",0.5,1)) -> 1
G36: =IF(D36<$I$4,$F$19,D36) -> 2016-03-01 | H36: =IF(C36="Loss of Pay",0,IF(C36="Half Pay Leave",0.5,1)) -> 1
B37: 4 | C37: Pay change, if any (after 1-1-2015 to 28-2-2016) Pay changes time to time should be noted as shown below
C38: Due to | D38: from (mm/dd/yyyy) | E38: pay
C39: Pay as on | D39: 2015-03-01 | E39: =E14 -> 16600 | F39: =LOOKUP(E39,E207:E286,G207:G286) -> 35120 | U39: =D39 -> 2015-03-01
C40: Annual Grade Increment | D40: 2015-08-01 | E40: =AT40 -> 36070 | U40: =IF(D40<$U$39,$F$33+1,D40) -> 2015-08-01 | AR40: Not Applicable | AS40: 2013-03-01 | AT40: =IF(C40="Not Applicable",0,IF(C40=$G$77,LOOKUP(F39,$C$207:$C$287,$D$208:$D$288),LOOKUP(F39,$C$207:$C$287,$D$207:$D$287))) -> 36070
C41: Not Applicable | E41: =AT41 -> 0 | U41: =IF(D41<$U$39,$F$33+1,D41) -> 2016-04-01 | AR41: Not Applicable | AS41: 2013-03-01 | AT41: =IF(C41="Not Applicable",0,IF(C41=$G$77,LOOKUP(E40,$C$207:$C$287,$D$208:$D$288),LOOKUP(E40,$C$207:$C$287,$D$207:$D$287))) -> 0
C42: Not Applicable | E42: =AT42 -> 0 | U42: =IF(D42<$U$39,$F$33+1,D42) -> 2016-04-01 | AR42: Not Applicable | AS42: 2013-03-01 | AT42: 0
C43: Not Applicable | E43: =AT43 -> 0 | U43: =IF(D43<$U$39,$F$33+1,D43) -> 2016-04-01 | AR43: Not Applicable | AS43: 2013-03-01 | AT43: 0
B44: 5 | C44: FOR HRA EXEMPTION | U44: =IF(D25<$U$39,$F$33+1,D25) -> 2015-04-01
C45: whether you have own house Property | E45: Not Applicable
C46: Rent Paid per month (if living in own house rent paid = 0) | D46: ="Rs."&SalaryParticulars!A55&" (Rent Suggested for max HRA exemption)" -> Rs.9200 (Rent Suggested for max HRA exemption) | E46: 7500
C47: Income from House Property (If you have own property) and Interests
C48: Rent Received from the Property per year ( from 1-4-2013 to 31-3-2014 )
C49: Municipal Taxes
C50: Interest on Housing Loan
C51: Income from other sources such as Interests on Savings A/C s etc.
B52: 6 | C52: whether AAS or Promotion Arrears etc drawn during the year
D53: AAS arrears | E53: Promotion Arrears
C54: PAY
C55: DA
C56: HRA
C57: CA
C58: CCA
C59: IR
C60: PT
C61: ZPPF/GPF
C62: CPS
B63: 7 | C63: DEDUCTIONS
C64: Note : we can change the Deduction mode by selecting the required deduction under section 80C in the GREEN colour rows
C65: DEDUCTIONS Under Chapter VI A..U/s. 80C
C66: EHS Contribution per month | E66: 90
C67: LIC per year
C68: APGLI subscription per month | E68: 450
C69: GIS subscription per month | E69: 60
C70: PF | E70: 1500
C71: Tuition fee for 2 children | E71: 126000
C72: Repayment of HBA installments. (Principle Amount)
C73: Public Provident fund | G73: Not Applicable
C74: Amount invested in 5year Post Office Time Deposite A/C | G74: Annual Grade Increment
C75: LIC Pension fund U/s. 80 CCC (Max. Rs. 10000) | G75: Automatic Advancement Scheme (AAS)
C76: Rajiv Gandhi Equity Savings Scheme (50% of amount invested and is Max. up to Rs.25000/-) U/s 80CCG | G76: Promotion Pay fixation on Promotion date Under FR 22(a)(i)
C77: Deductions change, if any | G77: Promotion Pay fixation Under FR 22(B) (2 Increments)
C78: Deduction | D78: from | E78: Amount (rs)
C79: APGLI
C80: GIS
C81: ZPPF/GPF
B82: 8 | C82: OTHER DEDUCTIONS UNDER CHAPTER VI A.
C83: Medical Insurance premium U/S. 80 D
C84: Treatment of Handicapped Dependent U/S. 80 DD
C85: Expenditure on Medical Treatment of Dependent U/S. 80 DDB
C86: Interest Paid on Education Loan ( 80 E ) | E86: 36800
C87: Donation to Charitable institution U/S. 80 G
C88: Maintenance of Totally Blind or P.H. U/S. 80 U | E88: =IF(D28="No",0,IF(E28="above 40%",50000,100000)) -> 0
C89: Interest earned on Savings Bank Account U/S. 80 TTA (Upto Rs.10000)
B90: 9 | C90: whether Income Tax already Paid if any
C91: Month | E91: Tax Amount
C92: =I4 -> 2015-03-01
C93: =I5 -> 2015-04-01
C94: 2015-05-01
C95: 2015-06-01
C96: 2015-07-01
C97: 2015-08-01
C98: 2015-09-01
C99: 2015-10-01
C100: 2015-11-01
C101: 2015-12-01
C102: 2016-01-01
C103: 2016-02-01
B104: 10 | C104: DDOs Particulars
C105: Name of Tax deductor (DDO) | E105: J.RAMACHANDRUDU
C106: Father's Name of DDO
C107: Designation of the DDO | E107: MEO, Dhone | F107: =D40 -> 2015-08-01 | G107: =E40 -> 36070
C108: Address of the DDO | E108: MEO, Dhone | F108: =IF(G108=G107,I15,D41) -> 00:00:00 | G108: =E41 -> 0
C109: Pan No of the DDO | F109: =IF(G109=G108,I15,D42) -> 2016-02-01 | G109: =E42 -> 0
C110: Tan No of the DDO | F110: =IF(G110=G109,I15,D43) -> 2016-02-01 | G110: =E43 -> 0
C111: Total Tax payable : | E111: ="Rs."&'Ascessment form'!J48 -> Rs.4180
C112: Note: 1)Medical Insurance premium U/S. 80-D (up to 15000/- or Rs.20000/- in case of senior citizen) 2)Treatment of Handicapped Dependent U/S.80-DD (Rs.50000 for above 40% disability (OR) Rs.100000 for above 80% disability) 3)Expenditure on Medical Treatment for himself or Dependent U/S.80-DDB (Rs.40000 or Actual expenditure whichever is less (OR) Rs.60000 or actual expenditure whichever is less if the dependent is above 60 years of age) 4)Maintenance of Totally Blind or P.H.C U/S.80-U (40% and above disability up to Rs.50000 & more than 80% disability up to Rs.100000 for self)
E206: Pay in RPS 2010 | F206: Emo = Pay+ DA@63.344%+ Fitment@43% | G206: Fix
B207: 1 | C207: 13000 | D207: 13390 | E207: 6700 | F207: 13825 | G207: 14170
B208: 2 | C208: 13390 | D208: 13780 | E208: 6900 | F208: 14238 | G208: 14600
B209: 3 | C209: 13780 | D209: 14170 | E209: 7100 | F209: 14650 | G209: 15030
B210: 4 | C210: 14170 | D210: 14600 | E210: 7300 | F210: 15063 | G210: 15460
B211: 5 | C211: 14600 | D211: 15030 | E211: 7520 | F211: 15517 | G211: 15930
B212: 6 | C212: 15030 | D212: 15460 | E212: 7740 | F212: 15971 | G212: 16400
B213: 7 | C213: 15460 | D213: 15930 | E213: 7960 | F213: 16425 | G213: 16870
B214: 8 | C214: 15930 | D214: 16400 | E214: 8200 | F214: 16920 | G214: 17380
B215: 9 | C215: 16400 | D215: 16870 | E215: 8440 | F215: 17415 | G215: 17890
B216: 10 | C216: 16870 | D216: 17380 | E216: 8680 | F216: 17910 | G216: 18400
B217: 11 | C217: 17380 | D217: 17890 | E217: 8940 | F217: 18447 | G217: 18950
B218: 12 | C218: 17890 | D218: 18400 | E218: 9200 | F218: 18984 | G218: 19500
B219: 13 | C219: 18400 | D219: 18950 | E219: 9460 | F219: 19520 | G219: 20050
B220: 14 | C220: 18950 | D220: 19500 | E220: 9740 | F220: 20098 | G220: 20640
B221: 15 | C221: 19500 | D221: 20050 | E221: 10020 | F221: 20676 | G221: 21230
B222: 16 | C222: 20050 | D222: 20640 | E222: 10300 | F222: 21253 | G222: 21820
B223: 17 | C223: 20640 | D223: 21230 | E223: 10600 | F223: 21872 | G223: 22460
B224: 18 | C224: 21230 | D224: 21820 | E224: 10900 | F224: 22491 | G224: 23100
B225: 19 | C225: 21820 | D225: 22460 | E225: 11200 | F225: 23111 | G225: 23740
B226: 20 | C226: 22460 | D226: 23100 | E226: 11530 | F226: 23792 | G226: 24440
B227: 21 | C227: 23100 | D227: 23740 | E227: 11860 | F227: 24473 | G227: 25140
B228: 22 | C228: 23740 | D228: 24440 | E228: 12190 | F228: 25154 | G228: 25840
B229: 23 | C229: 24440 | D229: 25140 | E229: 12550 | F229: 25897 | G229: 26600
B230: 24 | C230: 25140 | D230: 25840 | E230: 12910 | F230: 26639 | G230: 27360
B231: 25 | C231: 25840 | D231: 26600 | E231: 13270 | F231: 27382 | G231: 28120
B232: 26 | C232: 26600 | D232: 27360 | E232: 13660 | F232: 28187 | G232: 28940
B233: 27 | C233: 27360 | D233: 28120 | E233: 14050 | F233: 28992 | G233: 29760
B234: 28 | C234: 28120 | D234: 28940 | E234: 14440 | F234: 29796 | G234: 30580
B235: 29 | C235: 28940 | D235: 29760 | E235: 14860 | F235: 30663 | G235: 31460
B236: 30 | C236: 29760 | D236: 30580 | E236: 15280 | F236: 31529 | G236: 32340
B237: 31 | C237: 30580 | D237: 31460 | E237: 15700 | F237: 32396 | G237: 33220
B238: 32 | C238: 31460 | D238: 32340 | E238: 16150 | F238: 33325 | G238: 34170
B239: 33 | C239: 32340 | D239: 33220 | E239: 16600 | F239: 34253 | G239: 35120
B240: 34 | C240: 33220 | D240: 34170 | E240: 17050 | F240: 35182 | G240: 36070
B241: 35 | C241: 34170 | D241: 35120 | E241: 17540 | F241: 36193 | G241: 37100
B242: 36 | C242: 35120 | D242: 36070 | E242: 18030 | F242: 37204 | G242: 38130
B243: 37 | C243: 36070 | D243: 37100 | E243: 18520 | F243: 38215 | G243: 39160
B244: 38 | C244: 37100 | D244: 38130 | E244: 19050 | F244: 39309 | G244: 40270
B245: 39 | C245: 38130 | D245: 39160 | E245: 19580 | F245: 40402 | G245: 41380
B246: 40 | C246: 39160 | D246: 40270 | E246: 20110 | F246: 41495 | G246: 42490
B247: 41 | C247: 40270 | D247: 41380 | E247: 20680 | F247: 42672 | G247: 43680
B248: 42 | C248: 41380 | D248: 42490 | E248: 21250 | F248: 43849 | G248: 44870
B249: 43 | C249: 42490 | D249: 43680 | E249: 21820 | F249: 45025 | G249: 46060
B250: 44 | C250: 43680 | D250: 44870 | E250: 22430 | F250: 46283 | G250: 47330
B251: 45 | C251: 44870 | D251: 46060 | E251: 23040 | F251: 47541 | G251: 48600
B252: 46 | C252: 46060 | D252: 47330 | E252: 23650 | F252: 48801 | G252: 49870
B253: 47 | C253: 47330 | D253: 48600 | E253: 24300 | F253: 50142 | G253: 51230
B254: 48 | C254: 48600 | D254: 49870 | E254: 24950 | F254: 51483 | G254: 52590
B255: 49 | C255: 49870 | D255: 51230 | E255: 25600 | F255: 52824 | G255: 53950
B256: 50 | C256: 51230 | D256: 52590 | E256: 26300 | F256: 54268 | G256: 55410
B257: 51 | C257: 52590 | D257: 53950 | E257: 27000 | F257: 55713 | G257: 56870
B258: 52 | C258: 53950 | D258: 55410 | E258: 27700 | F258: 57157 | G258: 58330
B259: 53 | C259: 55410 | D259: 56870 | E259: 28450 | F259: 58705 | G259: 59890
B260: 54 | C260: 56870 | D260: 58330 | E260: 29200 | F260: 60252 | G260: 61450
B261: 55 | C261: 58330 | D261: 59890 | E261: 29950 | F261: 61801 | G261: 63010
B262: 56 | C262: 59890 | D262: 61450 | E262: 30750 | F262: 63451 | G262: 64670
B263: 57 | C263: 61450 | D263: 63010 | E263: 31550 | F263: 65102 | G263: 66330
B264: 58 | C264: 63010 | D264: 64670 | E264: 32350 | F264: 66753 | G264: 67990
B265: 59 | C265: 64670 | D265: 66330 | E265: 33200 | F265: 68506 | G265: 69750
B266: 60 | C266: 66330 | D266: 67990 | E266: 34050 | F266: 70261 | G266: 71510
B267: 61 | C267: 67990 | D267: 69750 | E267: 34900 | F267: 72014 | G267: 73270
B268: 62 | C268: 69750 | D268: 71510 | E268: 35800 | F268: 73871 | G268: 75150
B269: 63 | C269: 71510 | D269: 73270 | E269: 36700 | F269: 75728 | G269: 77030
B270: 64 | C270: 73270 | D270: 75150 | E270: 37600 | F270: 77585 | G270: 78910
B271: 65 | C271: 75150 | D271: 77030 | E271: 38570 | F271: 79587 | G271: 80930
B272: 66 | C272: 77030 | D272: 78910 | E272: 39540 | F272: 81588 | G272: 82950
B273: 67 | C273: 78910 | D273: 80930 | E273: 40510 | F273: 83590 | G273: 84970
B274: 68 | C274: 80930 | D274: 82950 | E274: 41550 | F274: 85736 | G274: 87130
B275: 69 | C275: 82950 | D275: 84970 | E275: 42590 | F275: 87882 | G275: 89290
B276: 70 | C276: 84970 | D276: 87130 | E276: 43630 | F276: 90028 | G276: 91450
B277: 71 | C277: 87130 | D277: 89290 | E277: 44740 | F277: 92318 | G277: 93780
B278: 72 | C278: 89290 | D278: 91450 | E278: 45850 | F278: 94609 | G278: 96110
B279: 73 | C279: 91450 | D279: 93780 | E279: 46960 | F279: 96899 | G279: 98440
B280: 74 | C280: 93780 | D280: 96110 | E280: 48160 | F280: 99375 | G280: 100770
B281: 75 | C281: 96110 | D281: 98440 | E281: 49360 | F281: 101852 | G281: 103290
B282: 76 | C282: 98440 | D282: 100770 | E282: 50560 | F282: 104328 | G282: 105810
B283: 77 | C283: 100770 | D283: 103290 | E283: 51760 | F283: 106804 | G283: 108330
B284: 78 | C284: 103290 | D284: 105810 | E284: 53060 | F284: 109486 | G284: 110850
B285: 78 | C285: 105810 | D285: 108330 | E285: 54360 | F285: 112169 | G285: 110850
B286: 78 | C286: 108330 | D286: 110850 | E286: 55660 | F286: 114851 | G286: 110850
C287: 110850 | D287: 110850
D288: 110850

Sheet SalaryParticulars
A1: Before You Print this sheet we should observe that whether all amounts and arrears are correct or not. Also hide the unnecessary columns | AD1: =Data!U39 -> 2015-03-01 | AE1: 1 | AF1: =SMALL($AD$1:$AD$5,AE1) -> 2015-03-01 | AH1: =IF(AF1<Data!I2,Data!F19,AF1) -> 2015-03-01 | AI1: =SMALL($AH$1:$AH$5,AE1) -> 2015-03-01 | AJ1: =LOOKUP(AI1,Data!$U$39:$U$43,Data!$E$39:$E$43) -> 16600 | AK1: =IF(AJ1=0,0,IF(AJ1>18630,350,IF(AJ1>13270,220,IF(AJ1>8200,160,120)))) -> 220
G2: =CONCATENATE(Data!E8,", ",Data!E9,", ",Data!E10," MANDAL, ",Data!E11," DISTRICT") -> MPP School, NN Colony, Dhone, Mandal MANDAL, Kurnool Dist DISTRICT | AD2: =Data!U40 -> 2015-08-01 | AE2: 2 | AF2: =SMALL($AD$1:$AD$5,AE2) -> 2015-08-01 | AH2: =IF(AF2<Data!$I$2,Data!$F$19,IF(AF2=AF1,Data!$F$19,AF2)) -> 2015-08-01 | AI2: =SMALL($AH$1:$AH$5,AE2) -> 2015-08-01 | AJ2: =LOOKUP(AI2,Data!U39:U43,Data!E39:E43) -> 36070 | AK2: =IF(AJ2=0,0,IF(AJ2>18630,350,IF(AJ2>13270,220,IF(AJ2>8200,160,120)))) -> 350
B3: DETAILS OF INCOME DURING THE FINANCIAL YEAR 2015-16 (Salaries of Mar-2015 to Feb-2016 (I.e., from 1.4.2015 to 31.3.2016)) | AD3: =Data!U41 -> 2016-04-01 | AE3: 3 | AF3: =SMALL($AD$1:$AD$5,AE3) -> 2016-04-01 | AH3: =IF(AF3<Data!$I$2,Data!$F$19,IF(AF3=AF2,Data!$F$19,AF3)) -> 2016-04-01 | AI3: =SMALL($AH$1:$AH$5,AE3) -> 2016-03-01 | AJ3: =LOOKUP(AI3,Data!U39:U43,Data!E39:E43) -> 36070 | AK3: =IF(AJ3=0,0,IF(AJ3>18630,350,IF(AJ3>13270,220,IF(AJ3>8200,160,120)))) -> 350
D4: Name : | G4: =Data!E5 -> G.Venugopal | R4: Designation: | T4: =Data!E6 -> SGT | AD4: =Data!U42 -> 2016-04-01 | AE4: 4 | AF4: =SMALL($AD$1:$AD$5,AE4) -> 2016-04-01 | AH4: =IF(AF4<Data!$I$2,Data!$F$19,IF(AF4=AF3,Data!$F$19,AF4)) -> 2016-03-01 | AI4: =SMALL($AH$1:$AH$5,AE4) -> 2016-03-01 | AJ4: =LOOKUP(AI4,Data!U39:U43,Data!E39:E43) -> 36070 | AK4: =IF(AJ4=0,0,IF(AJ4>18630,350,IF(AJ4>13270,220,IF(AJ4>8200,160,120)))) -> 350 | AN4: 2016-03-01 | AO4: 2015-04-01 | AP4: 77.896
A5: Period | C5: No of days | D5: Pay | E5: PP+FP | F5: HMA | G5: D.A. | H5: H.R.A. | I5: CCA | J5: CA | K5: IR | L5: TOTAL | M5: P.F | N5: P.T | O5: G.I.S | P5: L.I.C | Q5: CPS | R5: APGLI | S5: EHS CONTRIBUTION | T5: E.W.F/ AFFDF | U5: CMRF | V5: Income Tax | W5: TOTAL DEDUCTIONS | Y5: CA | AA5: 2015-12-01 | AD5: =Data!U43 -> 2016-04-01 | AE5: 5 | AF5: =SMALL($AD$1:$AD$5,AE5) -> 2016-04-01 | AH5: =IF(AF5<Data!$I$2,Data!$F$19,IF(AF5=AF4,Data!$F$19,AF5)) -> 2016-03-01 | AI5: =SMALL($AH$1:$AH$5,AE5) -> 2016-04-01 | AJ5: =LOOKUP(AI5,Data!U39:U43,Data!E39:E43) -> 0 | AK5: =IF(AJ5=0,0,IF(AJ5>18630,350,IF(AJ5>13270,220,IF(AJ5>8200,160,120)))) -> 0 | AN5: Pay | AO5: PP+FP | AP5: DA | AQ5: HRA | AS5: DA | AT5: HRA | AU5: CCA | AV5: Gr Hyd | AW5: Gr VSP | AX5: Vja | AY5: Others
A6: =SalaryParticulars!AH6 -> 2015-03-01 | B6: =SalaryParticulars!AI6 -> 2015-03-31 | C6: =SalaryParticulars!AK6 -> 31 | D6: =ROUND(AN6*AK6/AJ6,0) -> 16600 | E6: =ROUND(SalaryParticulars!AO6*SalaryParticulars!AK6/SalaryParticulars!AJ6,0) -> 0 | F6: =Data!E17 -> 0 | G6: =ROUND(D6*AP4%,0) -> 12931 | H6: =ROUND(D6*SalaryParticulars!AR6%,0) -> 1992 | I6: =ROUND(SalaryParticulars!AU6*SalaryParticulars!AK6/SalaryParticulars!AJ6,0) -> 0 | J6: =IF(Data!$D$28="Yes",ROUND(IF(A6>=$AA$5,1350,900)*SalaryParticulars!AK6/SalaryParticulars!AJ6,0),0) -> 0 | K6: =IF(A6<Data!V2,ROUND(SalaryParticulars!D6*27%,0),ROUND(D6*0%,0)) -> 4482 | L6: =SUM(D6:K6) -> 36005 | M6: =IF(C6>=X6/2,IF(Data!$C$70="CPS",0,IF(Data!$E$81>0,IF(A6>=Data!$D$81,Data!$E$81,Data!$E$70),Data!$E$70)),0) -> 1500 | N6: =IF(Data!$D$28="Yes",0,IF(C6>=X6/2,IF(L6>20000,200,IF(L6>15000,150,IF(L6>10000,100,IF(L6>5000,80,0)))),0)) -> 200 | O6: =IF(C6>=X6/2,IF(Data!$E$80>0,IF(A6>=Data!$D$80,Data!$E$80,Data!$E$69),Data!$E$69),0) -> 60 | Q6: =IF(Data!$C$70="CPS",ROUND((SalaryParticulars!D6+SalaryParticulars!G6)*10%,0),0) -> 0 | R6: =IF(C6>=X6/2,IF(Data!$E$79>0,IF(SalaryParticulars!A6>=Data!$D$79,Data!$E$79,Data!$E$68),Data!$E$68),0) -> 450 | S6: =IF(C6>=X6/2,IF(A6>=$AA$6,Data!$E$66,0),0) -> 90 | T6: =IF(C6>=X6/2,IF(OR(MONTH(A6)=3,MONTH(A6)=12),20,0),0) -> 20 | U6: 0 | V6: =IF(C6>=X6/2,LOOKUP(A6,Data!$C$92:$D$103,Data!$E$92:$E$103),0) -> 0 | W6: =SUM(M6:V6) -> 2320 | X6: =SalaryParticulars!AJ6 -> 31 | Y6: =IF(J6>800,800,J6) -> 0 | AA6: 2014-11-01 | AD6: 2015-03-01 | AE6: =SMALL($AD$6:$AD$27,AC14) -> 00:00:00 | AF6: =IF(AE6<Data!$I$2,Data!$F$19,IF(AE6<$AD$6,Data!$F$19,AE6)) -> 2016-03-01 | AG6: =SMALL($AF$6:$AF$27,AC14) -> 2015-03-01 | AH6: =AG6 -> 2015-03-01 | AI6: =AH7-1 -> 2015-03-31 | AJ6: =DAY(DATE(YEAR(AH6),MONTH(AH6)+1,1)-1) -> 31 | AK6: =AI6-AH6+1 -> 31 | AL6: =IF(AND(AH6>=$AO$4,AH6<$AI$2),Data!$F$39,LOOKUP(AH6,$AI$1:$AI$5,$AJ$1:$AJ$5)) -> 16600 | AM6: =IF(AH6=Data!$G$33,Data!$H$33,IF(AH6=Data!$G$34,Data!$H$34,IF(AH6=Data!$G$35,Data!$H$35,Data!$H$36))) -> 1 | AN6: =IF(AH6>=$AN$4,0,ROUND(AL6*AM6,0)) -> 16600 | AO6: =IF(AN6>0,ROUND(Data!$E$15*AK6*AM6/AK6,0),0) -> 0 | AP6: =IF(AH6>=Data!$G$22,Data!$I$22,IF(AH6>=Data!$G$21,Data!$I$21,IF(AH6>=Data!$F$21,Data!$I$19,0))) -> 8.908 | AQ6: =IF(Data!$D$25<Data!$D$24,Data!$E$24,IF(AI6>=Data!$D$25,Data!$E$25,Data!$E$24)) -> 12 | AR6: =IF(AM6=0.5,AQ6*2,AQ6) -> 12 | AS6: =ROUND(AN6*AP6%*AK6/AJ6,0) -> 1479 | AT6: =ROUND(AN6*AQ6%*AK6/AJ6,0) -> 1992 | AU6: =IF(Data!$E$27="Greater Hyderabad",SalaryParticulars!AV6,IF(Data!$E$27="Greater Visakhapatnam",SalaryParticulars!AW6,IF(Data!$E$27="Vijayawada",SalaryParticulars!AX6,IF(Data!$E$27="Other Muncipal Corporations",SalaryParticulars!AY6,0)))) -> 0 | AV6: =IF(AN6=0,0,IF(AN6>18030,525,IF(AN6>13270,350,IF(AN6>8200,300,200)))) -> 350 | AW6: =IF(AN6=0,0,IF(AN6>18030,350,IF(AN6>13270,220,IF(AN6>8200,160,120)))) -> 220 | AX6: =IF(AN6=0,0,IF(AN6>18030,350,IF(AN6>13270,220,IF(AN6>8200,160,120)))) -> 220 | AY6: =IF(AN6=0,0,IF(AN6>18030,140,IF(AN6>13270,130,IF(AN6>8200,120,100)))) -> 130
A7: =SalaryParticulars!AH7 -> 2015-04-01 | B7: =SalaryParticulars!AI7 -> 2015-04-30 | C7: =SalaryParticulars!AK7 -> 30 | D7: 35120 | E7: =ROUND(SalaryParticulars!AO7*SalaryParticulars!AK7/SalaryParticulars!AJ7,0) -> 0 | F7: =IF(D7>0,IF(A7>=Data!$D$18,Data!$E$18,Data!$E$17),0) -> 0 | G7: =ROUND(D7*SalaryParticulars!AP7%,0) -> 3128 | H7: =ROUND(D7*SalaryParticulars!AR7%,0) -> 5092 | I7: =ROUND(SalaryParticulars!AU7*SalaryParticulars!AK7/SalaryParticulars!AJ7,0) -> 0 | J7: =IF(Data!$D$28="Yes",ROUND(IF(A7>=$AA$5,1350,900)*SalaryParticulars!AK7/SalaryParticulars!AJ7,0),0) -> 0 | K7: =ROUND(D7*0%,0) -> 0 | L7: 43340 | M7: =IF(C7>=X7/2,IF(Data!$C$70="CPS",0,IF(Data!$E$81>0,IF(A7>=Data!$D$81,Data!$E$81,Data!$E$70),Data!$E$70)),0) -> 1500 | N7: =IF(Data!$D$28="Yes",0,IF(C7>=X7/2,IF(L7>20000,200,IF(L7>15000,150,IF(L7>10000,100,IF(L7>5000,80,0)))),0)) -> 200 | O7: =IF(C7>=X7/2,IF(Data!$E$80>0,IF(A7>=Data!$D$80,Data!$E$80,Data!$E$69),Data!$E$69),0) -> 60 | Q7: =IF(Data!$C$70="CPS",ROUND((SalaryParticulars!D7+SalaryParticulars!G7)*10%,0),0) -> 0 | R7: =IF(C7>=X7/2,IF(Data!$E$79>0,IF(SalaryParticulars!A7>=Data!$D$79,Data!$E$79,Data!$E$68),Data!$E$68),0) -> 450 | S7: =IF(C7>=X7/2,IF(A7>=$AA$6,Data!$E$66,0),0) -> 90 | T7: 0 | U7: 0 | V7: =IF(C7>=X7/2,LOOKUP(A7,Data!$C$92:$D$103,Data!$E$92:$E$103),0) -> 0 | W7: =SUM(M7:V7) -> 2300 | X7: =SalaryParticulars!AJ7 -> 30 | Y7: =IF(J7>800,800,J7) -> 0 | AD7: 2015-04-01 | AE7: =SMALL($AD$6:$AD$27,AC15) -> 1900-01-01 | AF7: =IF(IF(AE7<Data!$I$2,Data!$F$19,IF(AE7<$AD$6,Data!$F$19,AE7))=AF6,Data!$F$19,IF(AE7<Data!$I$2,Data!$F$19,IF(AE7<$AD$6,Data!$F$19,AE7))) -> 2016-03-01 | AG7: =SMALL($AF$6:$AF$27,AC15) -> 2015-04-01 | AH7: =IF(AG7=AH6,AG8,AG7) -> 2015-04-01 | AI7: 2015-04-30 | AJ7: 30 | AK7: 30 | AL7: =IF(AND(AH7>=$AO$4,AH7<$AI$2),Data!$F$39,LOOKUP(AH7,$AI$1:$AI$5,$AJ$1:$AJ$5)) -> 35120 | AM7: =IF(AH7=Data!$G$33,Data!$H$33,IF(AH7=Data!$G$34,Data!$H$34,IF(AH7=Data!$G$35,Data!$H$35,Data!$H$36))) -> 1 | AN7: =IF(AH7>=$AN$4,0,ROUND(AL7*AM7,0)) -> 35120 | AO7: =IF(AN7>0,ROUND(Data!$E$15*AK7*AM7/AK7,0),0) -> 0 | AP7: =IF(AH7>=Data!$G$22,Data!$I$22,IF(AH7>=Data!$G$21,Data!$I$21,IF(AH7>=Data!$F$21,Data!$I$19,0))) -> 8.908 | AQ7: =IF(Data!$D$25<Data!$D$24,Data!$E$24,IF(AI7>=Data!$D$25,Data!$E$25,Data!$E$24)) -> 14.5 | AR7: =IF(AM7=0.5,AQ7*2,AQ7) -> 14.5 | AS7: 3128 | AT7: 5092 | AU7: =IF(Data!$E$27="Greater Hyderabad",SalaryParticulars!AV7,IF(Data!$E$27="Greater Visakhapatnam",SalaryParticulars!AW7,IF(Data!$E$27="Vijayawada",SalaryParticulars!AX7,IF(Data!$E$27="Other Muncipal Corporations",SalaryParticulars!AY7,0)))) -> 0 | AV7: =IF(AN7=0,0,IF(AN7>18030,525,IF(AN7>13270,350,IF(AN7>8200,300,200)))) -> 525 | AW7: =IF(AN7=0,0,IF(AN7>18030,350,IF(AN7>13270,220,IF(AN7>8200,160,120)))) -> 350 | AX7: =IF(AN7=0,0,IF(AN7>18030,350,IF(AN7>13270,220,IF(AN7>8200,160,120)))) -> 350 | AY7: =IF(AN7=0,0,IF(AN7>18030,140,IF(AN7>13270,130,IF(AN7>8200,120,100)))) -> 140
A8: =SalaryParticulars!AH8 -> 2015-05-01 | B8: =SalaryParticulars!AI8 -> 2015-05-31 | C8: =SalaryParticulars!AK8 -> 31 | D8: 35120 | E8: =ROUND(SalaryParticulars!AO8*SalaryParticulars!AK8/SalaryParticulars!AJ8,0) -> 0 | F8: =IF(D8>0,IF(A8>=Data!$D$18,Data!$E$18,Data!$E$17),0) -> 0 | G8: =ROUND(D8*SalaryParticulars!AP8%,0) -> 3128 | H8: =ROUND(D8*SalaryParticulars!AR8%,0) -> 5092 | I8: =ROUND(SalaryParticulars!AU8*SalaryParticulars!AK8/SalaryParticulars!AJ8,0) -> 0 | J8: =IF(Data!$D$28="Yes",ROUND(IF(A8>=$AA$5,1350,900)*SalaryParticulars!AK8/SalaryParticulars!AJ8,0),0) -> 0 | K8: 0 | L8: 43340 | M8: =IF(C8>=X8/2,IF(Data!$C$70="CPS",0,IF(Data!$E$81>0,IF(A8>=Data!$D$81,Data!$E$81,Data!$E$70),Data!$E$70)),0) -> 1500 | N8: =IF(Data!$D$28="Yes",0,IF(C8>=X8/2,IF(L8>20000,200,IF(L8>15000,150,IF(L8>10000,100,IF(L8>5000,80,0)))),0)) -> 200 | O8: =IF(C8>=X8/2,IF(Data!$E$80>0,IF(A8>=Data!$D$80,Data!$E$80,Data!$E$69),Data!$E$69),0) -> 60 | Q8: =IF(Data!$C$70="CPS",ROUND((SalaryParticulars!D8+SalaryParticulars!G8)*10%,0),0) -> 0 | R8: =IF(C8>=X8/2,IF(Data!$E$79>0,IF(SalaryParticulars!A8>=Data!$D$79,Data!$E$79,Data!$E$68),Data!$E$68),0) -> 450 | S8: =IF(C8>=X8/2,IF(A8>=$AA$6,Data!$E$66,0),0) -> 90 | T8: 0 | U8: 0 | V8: =IF(C8>=X8/2,LOOKUP(A8,Data!$C$92:$D$103,Data!$E$92:$E$103),0) -> 0 | W8: 2300 | X8: =SalaryParticulars!AJ8 -> 31 | Y8: 0 | Z8: =MONTH(A8) -> 5 | AA8: =YEAR(A8) -> 2015 | AD8: 2015-05-01 | AE8: 1900-01-01 | AF8: =IF(IF(AE8<Data!$I$2,Data!$F$19,IF(AE8<$AD$6,Data!$F$19,AE8))=AF7,Data!$F$19,IF(AE8<Data!$I$2,Data!$F$19,IF(AE8<$AD$6,Data!$F$19,AE8))) -> 2016-03-01 | AG8: 2015-05-01 | AH8: =IF(AG8=AH7,AG9,AG8) -> 2015-05-01 | AI8: 2015-05-31 | AJ8: 31 | AK8: 31 | AL8: =IF(AND(AH8>=$AO$4,AH8<$AI$2),Data!$F$39,LOOKUP(AH8,$AI$1:$AI$5,$AJ$1:$AJ$5)) -> 35120 | AM8: =IF(AH8=Data!$G$33,Data!$H$33,IF(AH8=Data!$G$34,Data!$H$34,IF(AH8=Data!$G$35,Data!$H$35,Data!$H$36))) -> 1 | AN8: 35120 | AO8: =IF(AN8>0,ROUND(Data!$E$15*AK8*AM8/AK8,0),0) -> 0 | AP8: =IF(AH8>=Data!$G$22,Data!$I$22,IF(AH8>=Data!$G$21,Data!$I$21,IF(AH8>=Data!$F$21,Data!$I$19,0))) -> 8.908 | AQ8: =IF(Data!$D$25<Data!$D$24,Data!$E$24,IF(AI8>=Data!$D$25,Data!$E$25,Data!$E$24)) -> 14.5 | AR8: 14.5 | AS8: 3128 | AT8: 5092 | AU8: =IF(Data!$E$27="Greater Hyderabad",SalaryParticulars!AV8,IF(Data!$E$27="Greater Visakhapatnam",SalaryParticulars!AW8,IF(Data!$E$27="Vijayawada",SalaryParticulars!AX8,IF(Data!$E$27="Other Muncipal Corporations",SalaryParticulars!AY8,0)))) -> 0 | AV8: 525 | AW8: 350 | AX8: 350 | AY8: 140
A9: =SalaryParticulars!AH9 -> 2015-06-01 | B9: =SalaryParticulars!AI9 -> 2015-06-30 | C9: =SalaryParticulars!AK9 -> 30 | D9: 35120 | E9: =ROUND(SalaryParticulars!AO9*SalaryParticulars!AK9/SalaryParticulars!AJ9,0) -> 0 | F9: =IF(D9>0,IF(A9>=Data!$D$18,Data!$E$18,Data!$E$17),0) -> 0 | G9: =ROUND(D9*SalaryParticulars!AP9%,0) -> 3128 | H9: =ROUND(D9*SalaryParticulars!AR9%,0) -> 5092 | I9: =ROUND(SalaryParticulars!AU9*SalaryParticulars!AK9/SalaryParticulars!AJ9,0) -> 0 | J9: =IF(Data!$D$28="Yes",ROUND(IF(A9>=$AA$5,1350,900)*SalaryParticulars!AK9/SalaryParticulars!AJ9,0),0) -> 0 | K9: 0 | L9: 43340 | M9: =IF(C9>=X9/2,IF(Data!$C$70="CPS",0,IF(Data!$E$81>0,IF(A9>=Data!$D$81,Data!$E$81,Data!$E$70),Data!$E$70)),0) -> 1500 | N9: =IF(Data!$D$28="Yes",0,IF(C9>=X9/2,IF(L9>20000,200,IF(L9>15000,150,IF(L9>10000,100,IF(L9>5000,80,0)))),0)) -> 200 | O9: =IF(C9>=X9/2,IF(Data!$E$80>0,IF(A9>=Data!$D$80,Data!$E$80,Data!$E$69),Data!$E$69),0) -> 60 | Q9: =IF(Data!$C$70="CPS",ROUND((SalaryParticulars!D9+SalaryParticulars!G9)*10%,0),0) -> 0 | R9: =IF(C9>=X9/2,IF(Data!$E$79>0,IF(SalaryParticulars!A9>=Data!$D$79,Data!$E$79,Data!$E$68),Data!$E$68),0) -> 450 | S9: =IF(C9>=X9/2,IF(A9>=$AA$6,Data!$E$66,0),0) -> 90 | T9: 0 | U9: 0 | V9: =IF(C9>=X9/2,LOOKUP(A9,Data!$C$92:$D$103,Data!$E$92:$E$103),0) -> 0 | W9: 2300 | X9: =SalaryParticulars!AJ9 -> 30 | Y9: 0 | Z9: =MONTH(A9) -> 6 | AA9: =YEAR(A9) -> 2015 | AD9: 2015-06-01 | AE9: 1900-01-01 | AF9: =IF(IF(AE9<Data!$I$2,Data!$F$19,IF(AE9<$AD$6,Data!$F$19,AE9))=AF8,Data!$F$19,IF(AE9<Data!$I$2,Data!$F$19,IF(AE9<$AD$6,Data!$F$19,AE9))) -> 2016-03-01 | AG9: 2015-06-01 | AH9: 2015-06-01 | AI9: 2015-06-30 | AJ9: 30 | AK9: 30 | AL9: =IF(AND(AH9>=$AO$4,AH9<$AI$2),Data!$F$39,LOOKUP(AH9,$AI$1:$AI$5,$AJ$1:$AJ$5)) -> 35120 | AM9: =IF(AH9=Data!$G$33,Data!$H$33,IF(AH9=Data!$G$34,Data!$H$34,IF(AH9=Data!$G$35,Data!$H$35,Data!$H$36))) -> 1 | AN9: 35120 | AO9: =IF(AN9>0,ROUND(Data!$E$15*AK9*AM9/AK9,0),0) -> 0 | AP9: =IF(AH9>=Data!$G$22,Data!$I$22,IF(AH9>=Data!$G$21,Data!$I$21,IF(AH9>=Data!$F$21,Data!$I$19,0))) -> 8.908 | AQ9: =IF(Data!$D$25<Data!$D$24,Data!$E$24,IF(AI9>=Data!$D$25,Data!$E$25,Data!$E$24)) -> 14.5 | AR9: 14.5 | AS9: 3128 | AT9: 5092 | AU9: =IF(Data!$E$27="Greater Hyderabad",SalaryParticulars!AV9,IF(Data!$E$27="Greater Visakhapatnam",SalaryParticulars!AW9,IF(Data!$E$27="Vijayawada",SalaryParticulars!AX9,IF(Data!$E$27="Other Muncipal Corporations",SalaryParticulars!AY9,0)))) -> 0 | AV9: 525 | AW9: 350 | AX9: 350 | AY9: 140
A10: =SalaryParticulars!AH10 -> 2015-07-01 | B10: =SalaryParticulars!AI10 -> 2015-07-31 | C10: =SalaryParticulars!AK10 -> 31 | D10: 35120 | E10: =ROUND(SalaryParticulars!AO10*SalaryParticulars!AK10/SalaryParticulars!AJ10,0) -> 0 | F10: =IF(D10>0,IF(A10>=Data!$D$18,Data!$E$18,Data!$E$17),0) -> 0 | G10: =ROUND(D10*SalaryParticulars!AP10%,0) -> 3128 | H10: =ROUND(D10*SalaryParticulars!AR10%,0) -> 5092 | I10: =ROUND(SalaryParticulars!AU10*SalaryParticulars!AK10/SalaryParticulars!AJ10,0) -> 0 | J10: =IF(Data!$D$28="Yes",ROUND(IF(A10>=$AA$5,1350,900)*SalaryParticulars!AK10/SalaryParticulars!AJ10,0),0) -> 0 | K10: 0 | L10: 43340 | M10: =IF(C10>=X10/2,IF(Data!$C$70="CPS",0,IF(Data!$E$81>0,IF(A10>=Data!$D$81,Data!$E$81,Data!$E$70),Data!$E$70)),0) -> 1500 | N10: =IF(Data!$D$28="Yes",0,IF(C10>=X10/2,IF(L10>20000,200,IF(L10>15000,150,IF(L10>10000,100,IF(L10>5000,80,0)))),0)) -> 200 | O10: =IF(C10>=X10/2,IF(Data!$E$80>0,IF(A10>=Data!$D$80,Data!$E$80,Data!$E$69),Data!$E$69),0) -> 60 | Q10: =IF(Data!$C$70="CPS",ROUND((SalaryParticulars!D10+SalaryParticulars!G10)*10%,0),0) -> 0 | R10: =IF(C10>=X10/2,IF(Data!$E$79>0,IF(SalaryParticulars!A10>=Data!$D$79,Data!$E$79,Data!$E$68),Data!$E$68),0) -> 450 | S10: =IF(C10>=X10/2,IF(A10>=$AA$6,Data!$E$66,0),0) -> 90 | T10: 0 | U10: =IF(AND(Z10=8,AA10=2014),ROUND(D10*1/31,0),0) -> 0 | V10: =IF(C10>=X10/2,LOOKUP(A10,Data!$C$92:$D$103,Data!$E$92:$E$103),0) -> 0 | W10: 2300 | X10: =SalaryParticulars!AJ10 -> 31 | Y10: 0 | Z10: 7 | AA10: 2015 | AD10: 2015-07-01 | AE10: 2015-03-01 | AF10: =IF(IF(AE10<Data!$I$2,Data!$F$19,IF(AE10<$AD$6,Data!$F$19,AE10))=AF9,Data!$F$19,IF(AE10<Data!$I$2,Data!$F$19,IF(AE10<$AD$6,Data!$F$19,AE10))) -> 2015-03-01 | AG10: 2015-07-01 | AH10: 2015-07-01 | AI10: 2015-07-31 | AJ10: 31 | AK10: 31 | AL10: =IF(AND(AH10>=$AO$4,AH10<$AI$2),Data!$F$39,LOOKUP(AH10,$AI$1:$AI$5,$AJ$1:$AJ$5)) -> 35120 | AM10: =IF(AH10=Data!$G$33,Data!$H$33,IF(AH10=Data!$G$34,Data!$H$34,IF(AH10=Data!$G$35,Data!$H$35,Data!$H$36))) -> 1 | AN10: 35120 | AO10: =IF(AN10>0,ROUND(Data!$E$15*AK10*AM10/AK10,0),0) -> 0 | AP10: =IF(AH10>=Data!$G$22,Data!$I$22,IF(AH10>=Data!$G$21,Data!$I$21,IF(AH10>=Data!$F$21,Data!$I$19,0))) -> 8.908 | AQ10: =IF(Data!$D$25<Data!$D$24,Data!$E$24,IF(AI10>=Data!$D$25,Data!$E$25,Data!$E$24)) -> 14.5 | AR10: 14.5 | AS10: 3128 | AT10: 5092 | AU10: =IF(Data!$E$27="Greater Hyderabad",SalaryParticulars!AV10,IF(Data!$E$27="Greater Visakhapatnam",SalaryParticulars!AW10,IF(Data!$E$27="Vijayawada",SalaryParticulars!AX10,IF(Data!$E$27="Other Muncipal Corporations",SalaryParticulars!AY10,0)))) -> 0 | AV10: 525 | AW10: 350 | AX10: 350 | AY10: 140
A11: =SalaryParticulars!AH11 -> 2015-08-01 | B11: =SalaryParticulars!AI11 -> 2015-08-31 | C11: =SalaryParticulars!AK11 -> 31 | D11: 36070 | E11: =ROUND(SalaryParticulars!AO11*SalaryParticulars!AK11/SalaryParticulars!AJ11,0) -> 0 | F11: =IF(D11>0,IF(A11>=Data!$D$18,Data!$E$18,Data!$E$17),0) -> 0 | G11: =ROUND(D11*SalaryParticulars!AP11%,0) -> 3213 | H11: =ROUND(D11*SalaryParticulars!AR11%,0) -> 5230 | I11: =ROUND(SalaryParticulars!AU11*SalaryParticulars!AK11/SalaryParticulars!AJ11,0) -> 0 | J11: =IF(Data!$D$28="Yes",ROUND(IF(A11>=$AA$5,1350,900)*SalaryParticulars!AK11/SalaryParticulars!AJ11,0),0) -> 0 | K11: 0 | L11: 44513 | M11: =IF(C11>=X11/2,IF(Data!$C$70="CPS",0,IF(Data!$E$81>0,IF(A11>=Data!$D$81,Data!$E$81,Data!$E$70),Data!$E$70)),0) -> 1500 | N11: =IF(Data!$D$28="Yes",0,IF(C11>=X11/2,IF(L11>20000,200,IF(L11>15000,150,IF(L11>10000,100,IF(L11>5000,80,0)))),0)) -> 200 | O11: =IF(C11>=X11/2,IF(Data!$E$80>0,IF(A11>=Data!$D$80,Data!$E$80,Data!$E$69),Data!$E$69),0) -> 60 | Q11: =IF(Data!$C$70="CPS",ROUND((SalaryParticulars!D11+SalaryParticulars!G11)*10%,0),0) -> 0 | R11: =IF(C11>=X11/2,IF(Data!$E$79>0,IF(SalaryParticulars!A11>=Data!$D$79,Data!$E$79,Data!$E$68),Data!$E$68),0) -> 450 | S11: =IF(C11>=X11/2,IF(A11>=$AA$6,Data!$E$66,0),0) -> 90 | T11: 0 | U11: =IF(AND(Z11=8,AA11=2014),ROUND(D11*1/31,0),0) -> 0 | V11: =IF(C11>=X11/2,LOOKUP(A11,Data!$C$92:$D$103,Data!$E$92:$E$103),0) -> 0 | W11: 2300 | X11: =SalaryParticulars!AJ11 -> 31 | Y11: 0 | Z11: 8 | AA11: 2015 | AD11: 2015-08-01 | AE11: 2015-03-01 | AF11: =IF(IF(AE11<Data!$I$2,Data!$F$19,IF(AE11<$AD$6,Data!$F$19,AE11))=AF10,Data!$F$19,IF(AE11<Data!$I$2,Data!$F$19,IF(AE11<$AD$6,Data!$F$19,AE11))) -> 2016-03-01 | AG11: 2015-08-01 | AH11: 2015-08-01 | AI11: 2015-08-31 | AJ11: 31 | AK11: 31 | AL11: =IF(AND(AH11>=$AO$4,AH11<$AI$2),Data!$F$39,LOOKUP(AH11,$AI$1:$AI$5,$AJ$1:$AJ$5)) -> 36070 | AM11: =IF(AH11=Data!$G$33,Data!$H$33,IF(AH11=Data!$G$34,Data!$H$34,IF(AH11=Data!$G$35,Data!$H$35,Data!$H$36))) -> 1 | AN11: 36070 | AO11: =IF(AN11>0,ROUND(Data!$E$15*AK11*AM11/AK11,0),0) -> 0 | AP11: =IF(AH11>=Data!$G$22,Data!$I$22,IF(AH11>=Data!$G$21,Data!$I$21,IF(AH11>=Data!$F$21,Data!$I$19,0))) -> 8.908 | AQ11: =IF(Data!$D$25<Data!$D$24,Data!$E$24,IF(AI11>=Data!$D$25,Data!$E$25,Data!$E$24)) -> 14.5 | AR11: 14.5 | AS11: 3213 | AT11: 5230 | AU11: =IF(Data!$E$27="Greater Hyderabad",SalaryParticulars!AV11,IF(Data!$E$27="Greater Visakhapatnam",SalaryParticulars!AW11,IF(Data!$E$27="Vijayawada",SalaryParticulars!AX11,IF(Data!$E$27="Other Muncipal Corporations",SalaryParticulars!AY11,0)))) -> 0 | AV11: 525 | AW11: 350 | AX11: 350 | AY11: 140
A12: =SalaryParticulars!AH12 -> 2015-09-01 | B12: =SalaryParticulars!AI12 -> 2015-09-30 | C12: =SalaryParticulars!AK12 -> 30 | D12: 36070 | E12: =ROUND(SalaryParticulars!AO12*SalaryParticulars!AK12/SalaryParticulars!AJ12,0) -> 0 | F12: =IF(D12>0,IF(A12>=Data!$D$18,Data!$E$18,Data!$E$17),0) -> 0 | G12: =ROUND(D12*SalaryParticulars!AP12%,0) -> 3213 | H12: =ROUND(D12*SalaryParticulars!AR12%,0) -> 5230 | I12: =ROUND(SalaryParticulars!AU12*SalaryParticulars!AK12/SalaryParticulars!AJ12,0) -> 0 | J12: =IF(Data!$D$28="Yes",ROUND(IF(A12>=$AA$5,1350,900)*SalaryParticulars!AK12/SalaryParticulars!AJ12,0),0) -> 0 | K12: 0 | L12: 44513 | M12: =IF(C12>=X12/2,IF(Data!$C$70="CPS",0,IF(Data!$E$81>0,IF(A12>=Data!$D$81,Data!$E$81,Data!$E$70),Data!$E$70)),0) -> 1500 | N12: =IF(Data!$D$28="Yes",0,IF(C12>=X12/2,IF(L12>20000,200,IF(L12>15000,150,IF(L12>10000,100,IF(L12>5000,80,0)))),0)) -> 200 | O12: =IF(C12>=X12/2,IF(Data!$E$80>0,IF(A12>=Data!$D$80,Data!$E$80,Data!$E$69),Data!$E$69),0) -> 60 | Q12: =IF(Data!$C$70="CPS",ROUND((SalaryParticulars!D12+SalaryParticulars!G12)*10%,0),0) -> 0 | R12: =IF(C12>=X12/2,IF(Data!$E$79>0,IF(SalaryParticulars!A12>=Data!$D$79,Data!$E$79,Data!$E$68),Data!$E$68),0) -> 450 | S12: =IF(C12>=X12/2,IF(A12>=$AA$6,Data!$E$66,0),0) -> 90 | T12: 0 | U12: 0 | V12: =IF(C12>=X12/2,LOOKUP(A12,Data!$C$92:$D$103,Data!$E$92:$E$103),0) -> 0 | W12: 2300 | X12: =SalaryParticulars!AJ12 -> 30 | Y12: 0 | Z12: =MONTH(A12) -> 9 | AA12: =YEAR(A12) -> 2015 | AD12: 2015-09-01 | AE12: 2015-04-01 | AF12: =IF(IF(AE12<Data!$I$2,Data!$F$19,IF(AE12<$AD$6,Data!$F$19,AE12))=AF11,Data!$F$19,IF(AE12<Data!$I$2,Data!$F$19,IF(AE12<$AD$6,Data!$F$19,AE12))) -> 2015-04-01 | AG12: 2015-09-01 | AH12: 2015-09-01 | AI12: 2015-09-30 | AJ12: 30 | AK12: 30 | AL12: =IF(AND(AH12>=$AO$4,AH12<$AI$2),Data!$F$39,LOOKUP(AH12,$AI$1:$AI$5,$AJ$1:$AJ$5)) -> 36070 | AM12: =IF(AH12=Data!$G$33,Data!$H$33,IF(AH12=Data!$G$34,Data!$H$34,IF(AH12=Data!$G$35,Data!$H$35,Data!$H$36))) -> 1 | AN12: 36070 | AO12: =IF(AN12>0,ROUND(Data!$E$15*AK12*AM12/AK12,0),0) -> 0 | AP12: =IF(AH12>=Data!$G$22,Data!$I$22,IF(AH12>=Data!$G$21,Data!$I$21,IF(AH12>=Data!$F$21,Data!$I$19,0))) -> 8.908 | AQ12: =IF(Data!$D$25<Data!$D$24,Data!$E$24,IF(AI12>=Data!$D$25,Data!$E$25,Data!$E$24)) -> 14.5 | AR12: 14.5 | AS12: 3213 | AT12: 5230 | AU12: =IF(Data!$E$27="Greater Hyderabad",SalaryParticulars!AV12,IF(Data!$E$27="Greater Visakhapatnam",SalaryParticulars!AW12,IF(Data!$E$27="Vijayawada",SalaryParticulars!AX12,IF(Data!$E$27="Other Muncipal Corporations",SalaryParticulars!AY12,0)))) -> 0 | AV12: 525 | AW12: 350 | AX12: 350 | AY12: 140
A13: =SalaryParticulars!AH13 -> 2015-10-01 | B13: =SalaryParticulars!AI13 -> 2015-10-31 | C13: =SalaryParticulars!AK13 -> 31 | D13: 36070 | E13: =ROUND(SalaryParticulars!AO13*SalaryParticulars!AK13/SalaryParticulars!AJ13,0) -> 0 | F13: =IF(D13>0,IF(A13>=Data!$D$18,Data!$E$18,Data!$E$17),0) -> 0 | G13: =ROUND(D13*SalaryParticulars!AP13%,0) -> 3213 | H13: =ROUND(D13*SalaryParticulars!AR13%,0) -> 5230 | I13: =ROUND(SalaryParticulars!AU13*SalaryParticulars!AK13/SalaryParticulars!AJ13,0) -> 0 | J13: =IF(Data!$D$28="Yes",ROUND(IF(A13>=$AA$5,1350,900)*SalaryParticulars!AK13/SalaryParticulars!AJ13,0),0) -> 0 | K13: 0 | L13: 44513 | M13: =IF(C13>=X13/2,IF(Data!$C$70="CPS",0,IF(Data!$E$81>0,IF(A13>=Data!$D$81,Data!$E$81,Data!$E$70),Data!$E$70)),0) -> 1500 | N13: =IF(Data!$D$28="Yes",0,IF(C13>=X13/2,IF(L13>20000,200,IF(L13>15000,150,IF(L13>10000,100,IF(L13>5000,80,0)))),0)) -> 200 | O13: =IF(C13>=X13/2,IF(Data!$E$80>0,IF(A13>=Data!$D$80,Data!$E$80,Data!$E$69),Data!$E$69),0) -> 60 | Q13: =IF(Data!$C$70="CPS",ROUND((SalaryParticulars!D13+SalaryParticulars!G13)*10%,0),0) -> 0 | R13: =IF(C13>=X13/2,IF(Data!$E$79>0,IF(SalaryParticulars!A13>=Data!$D$79,Data!$E$79,Data!$E$68),Data!$E$68),0) -> 450 | S13: =IF(C13>=X13/2,IF(A13>=$AA$6,Data!$E$66,0),0) -> 90 | T13: 0 | U13: 0 | V13: =IF(C13>=X13/2,LOOKUP(A13,Data!$C$92:$D$103,Data!$E$92:$E$103),0) -> 0 | W13: 2300 | X13: =SalaryParticulars!AJ13 -> 31 | Y13: 0 | Z13: 10 | AA13: 2015 | AD13: 2015-10-01 | AE13: 2015-04-01 | AF13: =IF(IF(AE13<Data!$I$2,Data!$F$19,IF(AE13<$AD$6,Data!$F$19,AE13))=AF12,Data!$F$19,IF(AE13<Data!$I$2,Data!$F$19,IF(AE13<$AD$6,Data!$F$19,AE13))) -> 2016-03-01 | AG13: 2015-10-01 | AH13: 2015-10-01 | AI13: 2015-10-31 | AJ13: 31 | AK13: 31 | AL13: =IF(AND(AH13>=$AO$4,AH13<$AI$2),Data!$F$39,LOOKUP(AH13,$AI$1:$AI$5,$AJ$1:$AJ$5)) -> 36070 | AM13: =IF(AH13=Data!$G$33,Data!$H$33,IF(AH13=Data!$G$34,Data!$H$34,IF(AH13=Data!$G$35,Data!$H$35,Data!$H$36))) -> 1 | AN13: =IF(AH13>=$AN$4,0,ROUND(AL13*AM13,0)) -> 36070 | AO13: =IF(AN13>0,ROUND(Data!$E$15*AK13*AM13/AK13,0),0) -> 0 | AP13: =IF(AH13>=Data!$G$22,Data!$I$22,IF(AH13>=Data!$G$21,Data!$I$21,IF(AH13>=Data!$F$21,Data!$I$19,0))) -> 8.908 | AQ13: =IF(Data!$D$25<Data!$D$24,Data!$E$24,IF(AI13>=Data!$D$25,Data!$E$25,Data!$E$24)) -> 14.5 | AR13: 14.5 | AS13: 3213 | AT13: 5230 | AU13: =IF(Data!$E$27="Greater Hyderabad",SalaryParticulars!AV13,IF(Data!$E$27="Greater Visakhapatnam",SalaryParticulars!AW13,IF(Data!$E$27="Vijayawada",SalaryParticulars!AX13,IF(Data!$E$27="Other Muncipal Corporations",SalaryParticulars!AY13,0)))) -> 0 | AV13: 525 | AW13: 350 | AX13: 350 | AY13: 140
A14: =SalaryParticulars!AH14 -> 2015-11-01 | B14: =SalaryParticulars!AI14 -> 2015-11-30 | C14: =SalaryParticulars!AK14 -> 30 | D14: 36070 | E14: =ROUND(SalaryParticulars!AO14*SalaryParticulars!AK14/SalaryParticulars!AJ14,0) -> 0 | F14: =IF(D14>0,IF(A14>=Data!$D$18,Data!$E$18,Data!$E$17),0) -> 0 | G14: =ROUND(D14*SalaryParticulars!AP14%,0) -> 3213 | H14: =ROUND(D14*SalaryParticulars!AR14%,0) -> 5230 | I14: =ROUND(SalaryParticulars!AU14*SalaryParticulars!AK14/SalaryParticulars!AJ14,0) -> 0 | J14: =IF(Data!$D$28="Yes",ROUND(IF(A14>=$AA$5,1350,900)*SalaryParticulars!AK14/SalaryParticulars!AJ14,0),0) -> 0 | K14: 0 | L14: 44513 | M14: =IF(C14>=X14/2,IF(Data!$C$70="CPS",0,IF(Data!$E$81>0,IF(A14>=Data!$D$81,Data!$E$81,Data!$E$70),Data!$E$70)),0) -> 1500 | N14: =IF(Data!$D$28="Yes",0,IF(C14>=X14/2,IF(L14>20000,200,IF(L14>15000,150,IF(L14>10000,100,IF(L14>5000,80,0)))),0)) -> 200 | O14: =IF(C14>=X14/2,IF(Data!$E$80>0,IF(A14>=Data!$D$80,Data!$E$80,Data!$E$69),Data!$E$69),0) -> 60 | Q14: =IF(Data!$C$70="CPS",ROUND((SalaryParticulars!D14+SalaryParticulars!G14)*10%,0),0) -> 0 | R14: =IF(C14>=X14/2,IF(Data!$E$79>0,IF(SalaryParticulars!A14>=Data!$D$79,Data!$E$79,Data!$E$68),Data!$E$68),0) -> 450 | S14: =IF(C14>=X14/2,IF(A14>=$AA$6,Data!$E$66,0),0) -> 90 | T14: 0 | U14: =IF(AND(Z14=11,AA14=2014),ROUND(D14*2/30,0),0) -> 0 | V14: =IF(C14>=X14/2,LOOKUP(A14,Data!$C$92:$D$103,Data!$E$92:$E$103),0) -> 0 | W14: 2300 | X14: =SalaryParticulars!AJ14 -> 30 | Y14: 0 | Z14: =MONTH(A14) -> 11 | AA14: =YEAR(A14) -> 2015 | AC14: 1 | AD14: 2015-11-01 | AE14: 2015-05-01 | AF14: =IF(IF(AE14<Data!$I$2,Data!$F$19,IF(AE14<$AD$6,Data!$F$19,AE14))=AF13,Data!$F$19,IF(AE14<Data!$I$2,Data!$F$19,IF(AE14<$AD$6,Data!$F$19,AE14))) -> 2015-05-01 | AG14: 2015-11-01 | AH14: 2015-11-01 | AI14: 2015-11-30 | AJ14: 30 | AK14: 30 | AL14: =IF(AND(AH14>=$AO$4,AH14<$AI$2),Data!$F$39,LOOKUP(AH14,$AI$1:$AI$5,$AJ$1:$AJ$5)) -> 36070 | AM14: =IF(AH14=Data!$G$33,Data!$H$33,IF(AH14=Data!$G$34,Data!$H$34,IF(AH14=Data!$G$35,Data!$H$35,Data!$H$36))) -> 1 | AN14: 36070 | AO14: =IF(AN14>0,ROUND(Data!$E$15*AK14*AM14/AK14,0),0) -> 0 | AP14: =IF(AH14>=Data!$G$22,Data!$I$22,IF(AH14>=Data!$G$21,Data!$I$21,IF(AH14>=Data!$F$21,Data!$I$19,0))) -> 8.908 | AQ14: =IF(Data!$D$25<Data!$D$24,Data!$E$24,IF(AI14>=Data!$D$25,Data!$E$25,Data!$E$24)) -> 14.5 | AR14: 14.5 | AS14: 3213 | AT14: 5230 | AU14: =IF(Data!$E$27="Greater Hyderabad",SalaryParticulars!AV14,IF(Data!$E$27="Greater Visakhapatnam",SalaryParticulars!AW14,IF(Data!$E$27="Vijayawada",SalaryParticulars!AX14,IF(Data!$E$27="Other Muncipal Corporations",SalaryParticulars!AY14,0)))) -> 0 | AV14: 525 | AW14: 350 | AX14: 350 | AY14: 140
A15: =SalaryParticulars!AH15 -> 2015-12-01 | B15: =SalaryParticulars!AI15 -> 2015-12-31 | C15: =SalaryParticulars!AK15 -> 31 | D15: 36070 | E15: =ROUND(SalaryParticulars!AO15*SalaryParticulars!AK15/SalaryParticulars!AJ15,0) -> 0 | F15: =IF(D15>0,IF(A15>=Data!$D$18,Data!$E$18,Data!$E$17),0) -> 0 | G15: =ROUND(D15*SalaryParticulars!AP15%,0) -> 3213 | H15: =ROUND(D15*SalaryParticulars!AR15%,0) -> 5230 | I15: =ROUND(SalaryParticulars!AU15*SalaryParticulars!AK15/SalaryParticulars!AJ15,0) -> 0 | J15: =IF(Data!$D$28="Yes",ROUND(IF(A15>=$AA$5,1350,900)*SalaryParticulars!AK15/SalaryParticulars!AJ15,0),0) -> 0 | K15: 0 | L15: 44513 | M15: =IF(C15>=X15/2,IF(Data!$C$70="CPS",0,IF(Data!$E$81>0,IF(A15>=Data!$D$81,Data!$E$81,Data!$E$70),Data!$E$70)),0) -> 1500 | N15: =IF(Data!$D$28="Yes",0,IF(C15>=X15/2,IF(L15>20000,200,IF(L15>15000,150,IF(L15>10000,100,IF(L15>5000,80,0)))),0)) -> 200 | O15: =IF(C15>=X15/2,IF(Data!$E$80>0,IF(A15>=Data!$D$80,Data!$E$80,Data!$E$69),Data!$E$69),0) -> 60 | Q15: =IF(Data!$C$70="CPS",ROUND((SalaryParticulars!D15+SalaryParticulars!G15)*10%,0),0) -> 0 | R15: =IF(C15>=X15/2,IF(Data!$E$79>0,IF(SalaryParticulars!A15>=Data!$D$79,Data!$E$79,Data!$E$68),Data!$E$68),0) -> 450 | S15: =IF(C15>=X15/2,IF(A15>=$AA$6,Data!$E$66,0),0) -> 90 | T15: =IF(C15>=X15/2,IF(OR(MONTH(A15)=3,MONTH(A15)=12),50,0),0) -> 50 | U15: =IF(AND(Z15=11,AA15=2014),ROUND(D15*2/30,0),0) -> 0 | V15: =IF(C15>=X15/2,LOOKUP(A15,Data!$C$92:$D$103,Data!$E$92:$E$103),0) -> 0 | W15: 2350 | X15: =SalaryParticulars!AJ15 -> 31 | Y15: 0 | Z15: =MONTH(A15) -> 12 | AA15: =YEAR(A15) -> 2015 | AC15: 2 | AD15: 2015-12-01 | AE15: 2015-06-01 | AF15: =IF(IF(AE15<Data!$I$2,Data!$F$19,IF(AE15<$AD$6,Data!$F$19,AE15))=AF14,Data!$F$19,IF(AE15<Data!$I$2,Data!$F$19,IF(AE15<$AD$6,Data!$F$19,AE15))) -> 2015-06-01 | AG15: 2015-12-01 | AH15: 2015-12-01 | AI15: 2015-12-31 | AJ15: 31 | AK15: 31 | AL15: =IF(AND(AH15>=$AO$4,AH15<$AI$2),Data!$F$39,LOOKUP(AH15,$AI$1:$AI$5,$AJ$1:$AJ$5)) -> 36070 | AM15: =IF(AH15=Data!$G$33,Data!$H$33,IF(AH15=Data!$G$34,Data!$H$34,IF(AH15=Data!$G$35,Data!$H$35,Data!$H$36))) -> 1 | AN15: 36070 | AO15: =IF(AN15>0,ROUND(Data!$E$15*AK15*AM15/AK15,0),0) -> 0 | AP15: =IF(AH15>=Data!$G$22,Data!$I$22,IF(AH15>=Data!$G$21,Data!$I$21,IF(AH15>=Data!$F$21,Data!$I$19,0))) -> 8.908 | AQ15: =IF(Data!$D$25<Data!$D$24,Data!$E$24,IF(AI15>=Data!$D$25,Data!$E$25,Data!$E$24)) -> 14.5 | AR15: 14.5 | AS15: 3213 | AT15: 5230 | AU15: =IF(Data!$E$27="Greater Hyderabad",SalaryParticulars!AV15,IF(Data!$E$27="Greater Visakhapatnam",SalaryParticulars!AW15,IF(Data!$E$27="Vijayawada",SalaryParticulars!AX15,IF(Data!$E$27="Other Muncipal Corporations",SalaryParticulars!AY15,0)))) -> 0 | AV15: 525 | AW15: 350 | AX15: 350 | AY15: 140
A16: =SalaryParticulars!AH16 -> 2016-01-01 | B16: =SalaryParticulars!AI16 -> 2016-01-31 | C16: =SalaryParticulars!AK16 -> 31 | D16: 36070 | E16: =ROUND(SalaryParticulars!AO16*SalaryParticulars!AK16/SalaryParticulars!AJ16,0) -> 0 | F16: =IF(D16>0,IF(A16>=Data!$D$18,Data!$E$18,Data!$E$17),0) -> 0 | G16: =ROUND(D16*SalaryParticulars!AP16%,0) -> 3213 | H16: =ROUND(D16*SalaryParticulars!AR16%,0) -> 5230 | I16: =ROUND(SalaryParticulars!AU16*SalaryParticulars!AK16/SalaryParticulars!AJ16,0) -> 0 | J16: =IF(Data!$D$28="Yes",ROUND(IF(A16>=$AA$5,1350,900)*SalaryParticulars!AK16/SalaryParticulars!AJ16,0),0) -> 0 | K16: 0 | L16: 44513 | M16: =IF(C16>=X16/2,IF(Data!$C$70="CPS",0,IF(Data!$E$81>0,IF(A16>=Data!$D$81,Data!$E$81,Data!$E$70),Data!$E$70)),0) -> 1500 | N16: =IF(Data!$D$28="Yes",0,IF(C16>=X16/2,IF(L16>20000,200,IF(L16>15000,150,IF(L16>10000,100,IF(L16>5000,80,0)))),0)) -> 200 | O16: =IF(C16>=X16/2,IF(Data!$E$80>0,IF(A16>=Data!$D$80,Data!$E$80,Data!$E$69),Data!$E$69),0) -> 60 | Q16: =IF(Data!$C$70="CPS",ROUND((SalaryParticulars!D16+SalaryParticulars!G16)*10%,0),0) -> 0 | R16: =IF(C16>=X16/2,IF(Data!$E$79>0,IF(SalaryParticulars!A16>=Data!$D$79,Data!$E$79,Data!$E$68),Data!$E$68),0) -> 450 | S16: =IF(C16>=X16/2,IF(A16>=$AA$6,Data!$E$66,0),0) -> 90 | T16: 0 | U16: 0 | V16: =IF(C16>=X16/2,LOOKUP(A16,Data!$C$92:$D$103,Data!$E$92:$E$103),0) -> 0 | W16: 2300 | X16: =SalaryParticulars!AJ16 -> 31 | Y16: 0 | Z16: 1 | AA16: 2016 | AC16: 3 | AD16: 2016-01-01 | AE16: 2015-07-01 | AF16: =IF(IF(AE16<Data!$I$2,Data!$F$19,IF(AE16<$AD$6,Data!$F$19,AE16))=AF15,Data!$F$19,IF(AE16<Data!$I$2,Data!$F$19,IF(AE16<$AD$6,Data!$F$19,AE16))) -> 2015-07-01 | AG16: 2016-01-01 | AH16: 2016-01-01 | AI16: 2016-01-31 | AJ16: 31 | AK16: 31 | AL16: =IF(AND(AH16>=$AO$4,AH16<$AI$2),Data!$F$39,LOOKUP(AH16,$AI$1:$AI$5,$AJ$1:$AJ$5)) -> 36070 | AM16: =IF(AH16=Data!$G$33,Data!$H$33,IF(AH16=Data!$G$34,Data!$H$34,IF(AH16=Data!$G$35,Data!$H$35,Data!$H$36))) -> 1 | AN16: 36070 | AO16: =IF(AN16>0,ROUND(Data!$E$15*AK16*AM16/AK16,0),0) -> 0 | AP16: =IF(AH16>=Data!$G$22,Data!$I$22,IF(AH16>=Data!$G$21,Data!$I$21,IF(AH16>=Data!$F$21,Data!$I$19,0))) -> 8.908 | AQ16: =IF(Data!$D$25<Data!$D$24,Data!$E$24,IF(AI16>=Data!$D$25,Data!$E$25,Data!$E$24)) -> 14.5 | AR16: 14.5 | AS16: 3213 | AT16: 5230 | AU16: =IF(Data!$E$27="Greater Hyderabad",SalaryParticulars!AV16,IF(Data!$E$27="Greater Visakhapatnam",SalaryParticulars!AW16,IF(Data!$E$27="Vijayawada",SalaryParticulars!AX16,IF(Data!$E$27="Other Muncipal Corporations",SalaryParticulars!AY16,0)))) -> 0 | AV16: 525 | AW16: 350 | AX16: 350 | AY16: 140
A17: =SalaryParticulars!AH17 -> 2016-02-01 | B17: =SalaryParticulars!AI17 -> 2016-02-29 | C17: =SalaryParticulars!AK17 -> 29 | D17: 36070 | E17: =ROUND(SalaryParticulars!AO17*SalaryParticulars!AK17/SalaryParticulars!AJ17,0) -> 0 | F17: =IF(D17>0,IF(A17>=Data!$D$18,Data!$E$18,Data!$E$17),0) -> 0 | G17: =ROUND(D17*SalaryParticulars!AP17%,0) -> 3213 | H17: =ROUND(D17*SalaryParticulars!AR17%,0) -> 5230 | I17: =ROUND(SalaryParticulars!AU17*SalaryParticulars!AK17/SalaryParticulars!AJ17,0) -> 0 | J17: =IF(Data!$D$28="Yes",ROUND(IF(A17>=$AA$5,1350,900)*SalaryParticulars!AK17/SalaryParticulars!AJ17,0),0) -> 0 | K17: 0 | L17: 44513 | M17: =IF(C17>=X17/2,IF(Data!$C$70="CPS",0,IF(Data!$E$81>0,IF(A17>=Data!$D$81,Data!$E$81,Data!$E$70),Data!$E$70)),0) -> 1500 | N17: =IF(Data!$D$28="Yes",0,IF(C17>=X17/2,IF(L17>20000,200,IF(L17>15000,150,IF(L17>10000,100,IF(L17>5000,80,0)))),0)) -> 200 | O17: =IF(C17>=X17/2,IF(Data!$E$80>0,IF(A17>=Data!$D$80,Data!$E$80,Data!$E$69),Data!$E$69),0) -> 60 | Q17: =IF(Data!$C$70="CPS",ROUND((SalaryParticulars!D17+SalaryParticulars!G17)*10%,0),0) -> 0 | R17: =IF(C17>=X17/2,IF(Data!$E$79>0,IF(SalaryParticulars!A17>=Data!$D$79,Data!$E$79,Data!$E$68),Data!$E$68),0) -> 450 | S17: =IF(C17>=X17/2,IF(A17>=$AA$6,Data!$E$66,0),0) -> 90 | T17: 0 | U17: 0 | V17: =IF(C17>=X17/2,LOOKUP(A17,Data!$C$92:$D$103,Data!$E$92:$E$103),0) -> 0 | W17: 2300 | X17: =SalaryParticulars!AJ17 -> 29 | Y17: 0 | Z17: 2 | AA17: 2016 | AC17: 4 | AD17: 2016-02-01 | AE17: 2015-08-01 | AF17: =IF(IF(AE17<Data!$I$2,Data!$F$19,IF(AE17<$AD$6,Data!$F$19,AE17))=AF16,Data!$F$19,IF(AE17<Data!$I$2,Data!$F$19,IF(AE17<$AD$6,Data!$F$19,AE17))) -> 2015-08-01 | AG17: 2016-02-01 | AH17: 2016-02-01 | AI17: 2016-02-29 | AJ17: 29 | AK17: 29 | AL17: =IF(AND(AH17>=$AO$4,AH17<$AI$2),Data!$F$39,LOOKUP(AH17,$AI$1:$AI$5,$AJ$1:$AJ$5)) -> 36070 | AM17: =IF(AH17=Data!$G$33,Data!$H$33,IF(AH17=Data!$G$34,Data!$H$34,IF(AH17=Data!$G$35,Data!$H$35,Data!$H$36))) -> 1 | AN17: 36070 | AO17: =IF(AN17>0,ROUND(Data!$E$15*AK17*AM17/AK17,0),0) -> 0 | AP17: =IF(AH17>=Data!$G$22,Data!$I$22,IF(AH17>=Data!$G$21,Data!$I$21,IF(AH17>=Data!$F$21,Data!$I$19,0))) -> 8.908 | AQ17: =IF(Data!$D$25<Data!$D$24,Data!$E$24,IF(AI17>=Data!$D$25,Data!$E$25,Data!$E$24)) -> 14.5 | AR17: 14.5 | AS17: 3213 | AT17: 5230 | AU17: =IF(Data!$E$27="Greater Hyderabad",SalaryParticulars!AV17,IF(Data!$E$27="Greater Visakhapatnam",SalaryParticulars!AW17,IF(Data!$E$27="Vijayawada",SalaryParticulars!AX17,IF(Data!$E$27="Other Muncipal Corporations",SalaryParticulars!AY17,0)))) -> 0 | AV17: 525 | AW17: 350 | AX17: 350 | AY17: 140
A18: =SalaryParticulars!AH18 -> 2016-03-01 | B18: =SalaryParticulars!AI18 -> 2016-02-29 | C18: =SalaryParticulars!AK18 -> 0 | D18: 0 | E18: =ROUND(SalaryParticulars!AO18*SalaryParticulars!AK18/SalaryParticulars!AJ18,0) -> 0 | F18: =IF(D18>0,IF(A18>=Data!$D$18,Data!$E$18,Data!$E$17),0) -> 0 | G18: =ROUND(D18*SalaryParticulars!AP18%,0) -> 0 | H18: =ROUND(D18*SalaryParticulars!AR18%,0) -> 0 | I18: =ROUND(SalaryParticulars!AU18*SalaryParticulars!AK18/SalaryParticulars!AJ18,0) -> 0 | J18: =IF(Data!$D$28="Yes",ROUND(IF(A18>=$AA$5,1350,900)*SalaryParticulars!AK18/SalaryParticulars!AJ18,0),0) -> 0 | K18: =ROUND(D18*0%,0) -> 0 | L18: =SUM(D18:K18) -> 0 | M18: =IF(C18>=X18/2,IF(Data!$C$70="CPS",0,IF(Data!$E$81>0,IF(A18>=Data!$D$81,Data!$E$81,Data!$E$70),Data!$E$70)),0) -> 0 | N18: =IF(Data!$D$28="Yes",0,IF(C18>=X18/2,IF(L18>20000,200,IF(L18>15000,150,IF(L18>10000,100,IF(L18>5000,80,0)))),0)) -> 0 | O18: =IF(C18>=X18/2,IF(Data!$E$80>0,IF(A18>=Data!$D$80,Data!$E$80,Data!$E$69),Data!$E$69),0) -> 0 | P18: =IF(C18>=X18/2,P17,0) -> 0 | Q18: =IF(Data!$C$70="CPS",ROUND((SalaryParticulars!D18+SalaryParticulars!G18)*10%,0),0) -> 0 | R18: =IF(C18>=X18/2,IF(Data!$E$79>0,IF(SalaryParticulars!A18>=Data!$D$79,Data!$E$79,Data!$E$68),Data!$E$68),0) -> 0 | S18: =IF(C18>=X18/2,IF(A18>=$AA$6,Data!$E$66,0),0) -> 0 | T18: 0 | U18: 0 | V18: =IF(C18>=X18/2,LOOKUP(A18,Data!$C$92:$D$103,Data!$E$92:$E$103),0) -> 0 | W18: =SUM(M18:V18) -> 0 | X18: =SalaryParticulars!AJ18 -> 31 | Y18: 0 | Z18: =MONTH(A18) -> 3 | AA18: =YEAR(A18) -> 2016 | AC18: 5 | AD18: =Data!D33 -> 00:00:00 | AE18: 2015-08-01 | AF18: =IF(IF(AE18<Data!$I$2,Data!$F$19,IF(AE18<$AD$6,Data!$F$19,AE18))=AF17,Data!$F$19,IF(AE18<Data!$I$2,Data!$F$19,IF(AE18<$AD$6,Data!$F$19,AE18))) -> 2016-03-01 | AG18: 2016-03-01 | AH18: 2016-03-01 | AI18: 2016-02-29 | AJ18: 31 | AK18: 0 | AL18: =IF(AND(AH18>=$AO$4,AH18<$AI$2),Data!$F$39,LOOKUP(AH18,$AI$1:$AI$5,$AJ$1:$AJ$5)) -> 36070 | AM18: =IF(AH18=Data!$G$33,Data!$H$33,IF(AH18=Data!$G$34,Data!$H$34,IF(AH18=Data!$G$35,Data!$H$35,Data!$H$36))) -> 0.5 | AN18: 0 | AO18: =IF(AN18>0,ROUND(Data!$E$15*AK18*AM18/AK18,0),0) -> 0 | AP18: =IF(AH18>=Data!$G$22,Data!$I$22,IF(AH18>=Data!$G$21,Data!$I$21,IF(AH18>=Data!$F$21,Data!$I$19,0))) -> 8.908 | AQ18: =IF(Data!$D$25<Data!$D$24,Data!$E$24,IF(AI18>=Data!$D$25,Data!$E$25,Data!$E$24)) -> 14.5 | AR18: 29 | AS18: 0 | AT18: 0 | AU18: =IF(Data!$E$27="Greater Hyderabad",SalaryParticulars!AV18,IF(Data!$E$27="Greater Visakhapatnam",SalaryParticulars!AW18,IF(Data!$E$27="Vijayawada",SalaryParticulars!AX18,IF(Data!$E$27="Other Muncipal Corporations",SalaryParticulars!AY18,0)))) -> 0 | AV18: 0 | AW18: 0 | AX18: 0 | AY18: 0
A19: =SalaryParticulars!AH19 -> 2016-03-01 | B19: =SalaryParticulars!AI19 -> 2016-02-29 | C19: =SalaryParticulars!AK19 -> 0 | D19: 0 | E19: =ROUND(SalaryParticulars!AO19*SalaryParticulars!AK19/SalaryParticulars!AJ19,0) -> 0 | F19: =IF(D19>0,IF(A19>=Data!$D$18,Data!$E$18,Data!$E$17),0) -> 0 | G19: =ROUND(D19*SalaryParticulars!AP19%,0) -> 0 | H19: =ROUND(D19*SalaryParticulars!AR19%,0) -> 0 | I19: =ROUND(SalaryParticulars!AU19*SalaryParticulars!AK19/SalaryParticulars!AJ19,0) -> 0 | J19: =IF(Data!$D$28="Yes",ROUND(IF(A19>=$AA$5,1350,900)*SalaryParticulars!AK19/SalaryParticulars!AJ19,0),0) -> 0 | K19: =ROUND(D19*0%,0) -> 0 | L19: 0 | M19: =IF(C19>=X19/2,IF(Data!$C$70="CPS",0,IF(Data!$E$81>0,IF(A19>=Data!$D$81,Data!$E$81,Data!$E$70),Data!$E$70)),0) -> 0 | N19: =IF(Data!$D$28="Yes",0,IF(C19>=X19/2,IF(L19>20000,200,IF(L19>15000,150,IF(L19>10000,100,IF(L19>5000,80,0)))),0)) -> 0 | O19: =IF(C19>=X19/2,IF(Data!$E$80>0,IF(A19>=Data!$D$80,Data!$E$80,Data!$E$69),Data!$E$69),0) -> 0 | P19: =IF(C19>=X19/2,P18,0) -> 0 | Q19: =IF(Data!$C$70="CPS",ROUND((SalaryParticulars!D19+SalaryParticulars!G19)*10%,0),0) -> 0 | R19: =IF(C19>=X19/2,IF(Data!$E$79>0,IF(SalaryParticulars!A19>=Data!$D$79,Data!$E$79,Data!$E$68),Data!$E$68),0) -> 0 | S19: =IF(C19>=X19/2,IF(A19>=$AA$6,Data!$E$66,0),0) -> 0 | T19: 0 | U19: 0 | V19: =IF(C19>=X19/2,LOOKUP(A19,Data!$C$92:$D$103,Data!$E$92:$E$103),0) -> 0 | W19: 0 | X19: =SalaryParticulars!AJ19 -> 31 | Y19: 0 | Z19: 3 | AA19: 2016 | AC19: 6 | AD19: =IF(Data!D34>Data!E33+1,Data!D34,Data!E33+1) -> 1900-01-01 | AE19: 2015-09-01 | AF19: =IF(IF(AE19<Data!$I$2,Data!$F$19,IF(AE19<$AD$6,Data!$F$19,AE19))=AF18,Data!$F$19,IF(AE19<Data!$I$2,Data!$F$19,IF(AE19<$AD$6,Data!$F$19,AE19))) -> 2015-09-01 | AG19: 2016-03-01 | AH19: 2016-03-01 | AI19: 2016-02-29 | AJ19: 31 | AK19: 0 | AL19: =IF(AND(AH19>=$AO$4,AH19<$AI$2),Data!$F$39,LOOKUP(AH19,$AI$1:$AI$5,$AJ$1:$AJ$5)) -> 36070 | AM19: =IF(AH19=Data!$G$33,Data!$H$33,IF(AH19=Data!$G$34,Data!$H$34,IF(AH19=Data!$G$35,Data!$H$35,Data!$H$36))) -> 0.5 | AN19: =IF(AH19>=$AN$4,0,ROUND(AL19*AM19,0)) -> 0 | AO19: =IF(AN19>0,ROUND(Data!$E$15*AK19*AM19/AK19,0),0) -> 0 | AP19: =IF(AH19>=Data!$G$22,Data!$I$22,IF(AH19>=Data!$G$21,Data!$I$21,IF(AH19>=Data!$F$21,Data!$I$19,0))) -> 8.908 | AQ19: =IF(Data!$D$25<Data!$D$24,Data!$E$24,IF(AI19>=Data!$D$25,Data!$E$25,Data!$E$24)) -> 14.5 | AR19: 29 | AS19: 0 | AT19: 0 | AU19: =IF(Data!$E$27="Greater Hyderabad",SalaryParticulars!AV19,IF(Data!$E$27="Greater Visakhapatnam",SalaryParticulars!AW19,IF(Data!$E$27="Vijayawada",SalaryParticulars!AX19,IF(Data!$E$27="Other Muncipal Corporations",SalaryParticulars!AY19,0)))) -> 0 | AV19: 0 | AW19: 0 | AX19: 0 | AY19: 0
A20: =SalaryParticulars!AH20 -> 2016-03-01 | B20: =SalaryParticulars!AI20 -> 2016-02-29 | C20: =SalaryParticulars!AK20 -> 0 | D20: 0 | E20: =ROUND(SalaryParticulars!AO20*SalaryParticulars!AK20/SalaryParticulars!AJ20,0) -> 0 | F20: =IF(D20>0,IF(A20>=Data!$D$18,Data!$E$18,Data!$E$17),0) -> 0 | G20: =ROUND(D20*SalaryParticulars!AP20%,0) -> 0 | H20: =ROUND(D20*SalaryParticulars!AR20%,0) -> 0 | I20: =ROUND(SalaryParticulars!AU20*SalaryParticulars!AK20/SalaryParticulars!AJ20,0) -> 0 | J20: =IF(Data!$D$28="Yes",ROUND(IF(A20>=$AA$5,1350,900)*SalaryParticulars!AK20/SalaryParticulars!AJ20,0),0) -> 0 | K20: =ROUND(D20*0%,0) -> 0 | L20: 0 | M20: =IF(C20>=X20/2,IF(Data!$C$70="CPS",0,IF(Data!$E$81>0,IF(A20>=Data!$D$81,Data!$E$81,Data!$E$70),Data!$E$70)),0) -> 0 | N20: =IF(Data!$D$28="Yes",0,IF(C20>=X20/2,IF(L20>20000,200,IF(L20>15000,150,IF(L20>10000,100,IF(L20>5000,80,0)))),0)) -> 0 | O20: =IF(C20>=X20/2,IF(Data!$E$80>0,IF(A20>=Data!$D$80,Data!$E$80,Data!$E$69),Data!$E$69),0) -> 0 | P20: =IF(C20>=X20/2,P19,0) -> 0 | Q20: =IF(Data!$C$70="CPS",ROUND((SalaryParticulars!D20+SalaryParticulars!G20)*10%,0),0) -> 0 | R20: =IF(C20>=X20/2,IF(Data!$E$79>0,IF(SalaryParticulars!A20>=Data!$D$79,Data!$E$79,Data!$E$68),Data!$E$68),0) -> 0 | S20: =IF(C20>=X20/2,IF(A20>=$AA$6,Data!$E$66,0),0) -> 0 | T20: 0 | U20: 0 | V20: =IF(C20>=X20/2,LOOKUP(A20,Data!$C$92:$D$103,Data!$E$92:$E$103),0) -> 0 | W20: 0 | X20: =SalaryParticulars!AJ20 -> 31 | Y20: 0 | Z20: 3 | AA20: 2016 | AC20: 7 | AD20: =IF(Data!D35>Data!E34+1,Data!D35,Data!E34+1) -> 1900-01-01 | AE20: 2015-10-01 | AF20: =IF(IF(AE20<Data!$I$2,Data!$F$19,IF(AE20<$AD$6,Data!$F$19,AE20))=AF19,Data!$F$19,IF(AE20<Data!$I$2,Data!$F$19,IF(AE20<$AD$6,Data!$F$19,AE20))) -> 2015-10-01 | AG20: 2016-03-01 | AH20: 2016-03-01 | AI20: 2016-02-29 | AJ20: 31 | AK20: 0 | AL20: =IF(AND(AH20>=$AO$4,AH20<$AI$2),Data!$F$39,LOOKUP(AH20,$AI$1:$AI$5,$AJ$1:$AJ$5)) -> 36070 | AM20: =IF(AH20=Data!$G$33,Data!$H$33,IF(AH20=Data!$G$34,Data!$H$34,IF(AH20=Data!$G$35,Data!$H$35,Data!$H$36))) -> 0.5 | AN20: 0 | AO20: =IF(AN20>0,ROUND(Data!$E$15*AK20*AM20/AK20,0),0) -> 0 | AP20: =IF(AH20>=Data!$G$22,Data!$I$22,IF(AH20>=Data!$G$21,Data!$I$21,IF(AH20>=Data!$F$21,Data!$I$19,0))) -> 8.908 | AQ20: =IF(Data!$D$25<Data!$D$24,Data!$E$24,IF(AI20>=Data!$D$25,Data!$E$25,Data!$E$24)) -> 14.5 | AR20: =IF(AM20=0.5,AQ20*2,AQ20) -> 29 | AS20: =ROUND(AN20*AP20%*AK20/AJ20,0) -> 0 | AT20: =ROUND(AN20*AQ20%*AK20/AJ20,0) -> 0 | AU20: =IF(Data!$E$27="Greater Hyderabad",SalaryParticulars!AV20,IF(Data!$E$27="Greater Visakhapatnam",SalaryParticulars!AW20,IF(Data!$E$27="Vijayawada",SalaryParticulars!AX20,IF(Data!$E$27="Other Muncipal Corporations",SalaryParticulars!AY20,0)))) -> 0 | AV20: =IF(AN20=0,0,IF(AN20>18030,525,IF(AN20>13270,350,IF(AN20>8200,300,200)))) -> 0 | AW20: =IF(AN20=0,0,IF(AN20>18030,350,IF(AN20>13270,220,IF(AN20>8200,160,120)))) -> 0 | AX20: =IF(AN20=0,0,IF(AN20>18030,350,IF(AN20>13270,220,IF(AN20>8200,160,120)))) -> 0 | AY20: =IF(AN20=0,0,IF(AN20>18030,140,IF(AN20>13270,130,IF(AN20>8200,120,100)))) -> 0
A21: TOTAL A | D21: =SUM(D6:D17) -> 409570 | E21: =SUM(E6:E20) -> 0 | F21: =SUM(F6:F20) -> 0 | G21: 47934 | H21: 58970 | I21: 0 | J21: 0 | K21: =SUM(K6:K20) -> 4482 | L21: 520956 | M21: =SUM(M6:M20) -> 18000 | N21: 2400 | O21: 720 | P21: 0 | Q21: 0 | R21: 5400 | S21: 1080 | T21: =SUM(T6:T20) -> 70 | U21: =SUM(U6:U20) -> 0 | V21: =SUM(V6:V20) -> 0 | W21: 27670 | AC21: 8 | AD21: =IF(Data!D36>Data!E35+1,Data!D36,Data!E35+1) -> 1900-01-01 | AE21: 2015-11-01 | AF21: =IF(IF(AE21<Data!$I$2,Data!$F$19,IF(AE21<$AD$6,Data!$F$19,AE21))=AF20,Data!$F$19,IF(AE21<Data!$I$2,Data!$F$19,IF(AE21<$AD$6,Data!$F$19,AE21))) -> 2015-11-01 | AG21: 2016-03-01 | AH21: 2016-03-01 | AI21: 2016-02-29 | AJ21: 31 | AK21: 0 | AL21: =IF(AND(AH21>=$AO$4,AH21<$AI$2),Data!$F$39,LOOKUP(AH21,$AI$1:$AI$5,$AJ$1:$AJ$5)) -> 36070 | AM21: =IF(AH21=Data!$G$33,Data!$H$33,IF(AH21=Data!$G$34,Data!$H$34,IF(AH21=Data!$G$35,Data!$H$35,Data!$H$36))) -> 0.5 | AN21: 0 | AO21: =IF(AN21>0,ROUND(Data!$E$15*AK21*AM21/AK21,0),0) -> 0 | AP21: =IF(AH21>=Data!$G$22,Data!$I$22,IF(AH21>=Data!$G$21,Data!$I$21,IF(AH21>=Data!$F$21,Data!$I$19,0))) -> 8.908 | AQ21: =IF(Data!$D$25<Data!$D$24,Data!$E$24,IF(AI21>=Data!$D$25,Data!$E$25,Data!$E$24)) -> 14.5 | AR21: 29 | AS21: 0 | AT21: 0 | AU21: =IF(Data!$E$27="Greater Hyderabad",SalaryParticulars!AV21,IF(Data!$E$27="Greater Visakhapatnam",SalaryParticulars!AW21,IF(Data!$E$27="Vijayawada",SalaryParticulars!AX21,IF(Data!$E$27="Other Muncipal Corporations",SalaryParticulars!AY21,0)))) -> 0 | AV21: 0 | AW21: 0 | AX21: 0 | AY21: 0
A22: Surrender Leave | D22: =IF(Data!E29=0,0,ROUND(LOOKUP(Data!$E$30,SalaryParticulars!$A$6:$A$20,D6:D20)*Data!E29/30,0)) -> 18035 | E22: =IF(Data!E29=0,0,ROUND(LOOKUP(Data!$E$30,SalaryParticulars!$A$6:$A$20,E6:E20)*Data!E29/30,0)) -> 0 | G22: =IF(Data!E29=0,0,ROUND(LOOKUP(Data!$E$30,SalaryParticulars!$A$6:$A$20,G6:G20)*Data!E29/30,0))+IF(Data!E29>0,ROUND(LOOKUP(Data!E30,Data!I2:I15,Data!N2:N15)*Data!E29/30,0),0) -> 1607 | H22: =IF(Data!E29=0,0,ROUND(LOOKUP(Data!$E$30,SalaryParticulars!$A$6:$A$20,H6:H20)*Data!E29/30,0)) -> 2615 | I22: =IF(Data!E29=0,0,ROUND(LOOKUP(Data!$E$30,SalaryParticulars!$A$6:$A$20,I6:I20)*Data!E29/30,0)) -> 0 | L22: =SUM(D22:K22) -> 22257 | M22: =IF(Data!C70="CPS",0,IF(Data!E29>0,ROUND(LOOKUP(Data!E30,Data!I2:I15,Data!N2:N15)*Data!E29/30,0),0)) -> 0 | Q22: =IF(Data!$C$70="CPS",ROUND((SalaryParticulars!D22+SalaryParticulars!G22)*10%,0),0) -> 0 | W22: =SUM(M22:V22) -> 0 | AC22: 9 | AD22: =AD1 -> 2015-03-01 | AE22: 2015-12-01 | AF22: =IF(IF(AE22<Data!$I$2,Data!$F$19,IF(AE22<$AD$6,Data!$F$19,AE22))=AF21,Data!$F$19,IF(AE22<Data!$I$2,Data!$F$19,IF(AE22<$AD$6,Data!$F$19,AE22))) -> 2015-12-01 | AG22: 2016-03-01 | AH22: 2016-03-01 | AI22: 2016-02-29 | AJ22: 31 | AK22: 0 | AL22: =IF(AND(AH22>=$AO$4,AH22<$AI$2),Data!$F$39,LOOKUP(AH22,$AI$1:$AI$5,$AJ$1:$AJ$5)) -> 36070 | AM22: =IF(AH22=Data!$G$33,Data!$H$33,IF(AH22=Data!$G$34,Data!$H$34,IF(AH22=Data!$G$35,Data!$H$35,Data!$H$36))) -> 0.5 | AN22: 0 | AO22: =IF(AN22>0,ROUND(Data!$E$15*AK22*AM22/AK22,0),0) -> 0 | AP22: =IF(AH22>=Data!$G$22,Data!$I$22,IF(AH22>=Data!$G$21,Data!$I$21,IF(AH22>=Data!$F$21,Data!$I$19,0))) -> 8.908 | AQ22: =IF(Data!$D$25<Data!$D$24,Data!$E$24,IF(AI22>=Data!$D$25,Data!$E$25,Data!$E$24)) -> 14.5 | AR22: 29 | AS22: 0 | AT22: 0 | AU22: =IF(Data!$E$27="Greater Hyderabad",SalaryParticulars!AV22,IF(Data!$E$27="Greater Visakhapatnam",SalaryParticulars!AW22,IF(Data!$E$27="Vijayawada",SalaryParticulars!AX22,IF(Data!$E$27="Other Muncipal Corporations",SalaryParticulars!AY22,0)))) -> 0 | AV22: 0 | AW22: 0 | AX22: 0 | AY22: 0
A23: D.A. Arrear | G23: =Data!N19 -> 0 | L23: =G23 -> 0 | M23: =IF(Data!C70="CPS",0,Data!O19) -> 0 | Q23: =IF(Data!$C$70="CPS",ROUND(L23*10%,0),0) -> 0 | W23: =SUM(M23:V23) -> 0 | AC23: 10 | AD23: =AD2 -> 2015-08-01 | AE23: 2016-01-01 | AF23: =IF(IF(AE23<Data!$I$2,Data!$F$19,IF(AE23<$AD$6,Data!$F$19,AE23))=AF22,Data!$F$19,IF(AE23<Data!$I$2,Data!$F$19,IF(AE23<$AD$6,Data!$F$19,AE23))) -> 2016-01-01 | AG23: 2016-03-01 | AH23: 2016-03-01 | AI23: 2016-02-29 | AJ23: 31 | AK23: 0 | AL23: =IF(AND(AH23>=$AO$4,AH23<$AI$2),Data!$F$39,LOOKUP(AH23,$AI$1:$AI$5,$AJ$1:$AJ$5)) -> 36070 | AM23: =IF(AH23=Data!$G$33,Data!$H$33,IF(AH23=Data!$G$34,Data!$H$34,IF(AH23=Data!$G$35,Data!$H$35,Data!$H$36))) -> 0.5 | AN23: 0 | AO23: =IF(AN23>0,ROUND(Data!$E$15*AK23*AM23/AK23,0),0) -> 0 | AP23: =IF(AH23>=Data!$G$22,Data!$I$22,IF(AH23>=Data!$G$21,Data!$I$21,IF(AH23>=Data!$F$21,Data!$I$19,0))) -> 8.908 | AQ23: =IF(Data!$D$25<Data!$D$24,Data!$E$24,IF(AI23>=Data!$D$25,Data!$E$25,Data!$E$24)) -> 14.5 | AR23: 29 | AS23: 0 | AT23: 0 | AU23: =IF(Data!$E$27="Greater Hyderabad",SalaryParticulars!AV23,IF(Data!$E$27="Greater Visakhapatnam",SalaryParticulars!AW23,IF(Data!$E$27="Vijayawada",SalaryParticulars!AX23,IF(Data!$E$27="Other Muncipal Corporations",SalaryParticulars!AY23,0)))) -> 0 | AV23: 0 | AW23: 0 | AX23: 0 | AY23: 0
A24: D.A. Arrear | G24: =Data!N21 -> 0 | L24: =G24 -> 0 | M24: =IF(Data!$C$70="CPS",0,Data!O21) -> 0 | Q24: =IF(Data!$C$70="CPS",ROUND(L24*10%,0),0) -> 0 | W24: =SUM(M24:V24) -> 0 | AC24: 11 | AD24: =AD3 -> 2016-04-01 | AE24: 2016-02-01 | AF24: =IF(IF(AE24<Data!$I$2,Data!$F$19,IF(AE24<$AD$6,Data!$F$19,AE24))=AF23,Data!$F$19,IF(AE24<Data!$I$2,Data!$F$19,IF(AE24<$AD$6,Data!$F$19,AE24))) -> 2016-02-01 | AG24: 2016-03-01 | AH24: 2016-03-01 | AI24: 2016-03-31 | AJ24: 31 | AK24: 31 | AL24: =IF(AND(AH24>=$AO$4,AH24<$AI$2),Data!$F$39,LOOKUP(AH24,$AI$1:$AI$5,$AJ$1:$AJ$5)) -> 36070 | AM24: =IF(AH24=Data!$G$33,Data!$H$33,IF(AH24=Data!$G$34,Data!$H$34,IF(AH24=Data!$G$35,Data!$H$35,Data!$H$36))) -> 0.5 | AN24: 0 | AO24: =IF(AN24>0,ROUND(Data!$E$15*AK24*AM24/AK24,0),0) -> 0 | AP24: =IF(AH24>=Data!$G$22,Data!$I$22,IF(AH24>=Data!$G$21,Data!$I$21,IF(AH24>=Data!$F$21,Data!$I$19,0))) -> 8.908 | AQ24: =IF(Data!$D$25<Data!$D$24,Data!$E$24,IF(AI24>=Data!$D$25,Data!$E$25,Data!$E$24)) -> 14.5 | AR24: 29 | AS24: 0 | AT24: 0 | AU24: =IF(Data!$E$27="Greater Hyderabad",SalaryParticulars!AV24,IF(Data!$E$27="Greater Visakhapatnam",SalaryParticulars!AW24,IF(Data!$E$27="Vijayawada",SalaryParticulars!AX24,IF(Data!$E$27="Other Muncipal Corporations",SalaryParticulars!AY24,0)))) -> 0 | AV24: 0 | AW24: 0 | AX24: 0 | AY24: 0
A25: =Data!D53 -> AAS arrears | D25: =Data!D54 -> 0 | G25: =Data!D55 -> 0 | H25: =Data!D56 -> 0 | I25: =Data!D58 -> 0 | J25: =Data!D57 -> 0 | K25: =Data!D59 -> 0 | L25: =SUM(D25:J25) -> 0 | M25: =Data!D61 -> 0 | N25: =Data!D60 -> 0 | Q25: =Data!D62 -> 0 | W25: =SUM(M25:V25) -> 0 | AC25: 12 | AD25: =AD4 -> 2016-04-01 | AE25: 2016-04-01 | AF25: =IF(IF(AE25<Data!$I$2,Data!$F$19,IF(AE25<$AD$6,Data!$F$19,AE25))=AF24,Data!$F$19,IF(AE25<Data!$I$2,Data!$F$19,IF(AE25<$AD$6,Data!$F$19,AE25))) -> 2016-04-01 | AG25: 2016-03-01 | AH25: 2016-04-01 | AI25: 2016-03-31 | AJ25: 30 | AK25: 0 | AL25: =IF(AND(AH25>=$AO$4,AH25<$AI$2),Data!$F$39,LOOKUP(AH25,$AI$1:$AI$5,$AJ$1:$AJ$5)) -> 0 | AM25: =IF(AH25=Data!$G$33,Data!$H$33,IF(AH25=Data!$G$34,Data!$H$34,IF(AH25=Data!$G$35,Data!$H$35,Data!$H$36))) -> 1 | AN25: 0 | AO25: =IF(AN25>0,ROUND(Data!$E$15*AK25*AM25/AK25,0),0) -> 0 | AP25: =IF(AH25>=Data!$G$22,Data!$I$22,IF(AH25>=Data!$G$21,Data!$I$21,IF(AH25>=Data!$F$21,Data!$I$19,0))) -> 8.908 | AQ25: =IF(Data!$D$25<Data!$D$24,Data!$E$24,IF(AI25>=Data!$D$25,Data!$E$25,Data!$E$24)) -> 14.5 | AR25: 14.5 | AS25: 0 | AT25: 0 | AU25: =IF(Data!$E$27="Greater Hyderabad",SalaryParticulars!AV25,IF(Data!$E$27="Greater Visakhapatnam",SalaryParticulars!AW25,IF(Data!$E$27="Vijayawada",SalaryParticulars!AX25,IF(Data!$E$27="Other Muncipal Corporations",SalaryParticulars!AY25,0)))) -> 0 | AV25: 0 | AW25: 0 | AX25: 0 | AY25: 0
A26: =Data!E53 -> Promotion Arrears | D26: =Data!E54 -> 0 | G26: =Data!E55 -> 0 | H26: =Data!E56 -> 0 | I26: =Data!E58 -> 0 | J26: =Data!E57 -> 0 | K26: =Data!E59 -> 0 | L26: =SUM(D26:J26) -> 0 | M26: =Data!E61 -> 0 | N26: =Data!E60 -> 0 | Q26: =Data!E62 -> 0 | W26: =SUM(M26:V26) -> 0 | AC26: 13 | AD26: =AD5 -> 2016-04-01 | AE26: 2016-04-01 | AF26: =IF(IF(AE26<Data!$I$2,Data!$F$19,IF(AE26<$AD$6,Data!$F$19,AE26))=AF25,Data!$F$19,IF(AE26<Data!$I$2,Data!$F$19,IF(AE26<$AD$6,Data!$F$19,AE26))) -> 2016-03-01 | AG26: 2016-04-01 | AH26: 2016-04-01 | AI26: -1 | AJ26: 30 | AK26: -42461 | AL26: =IF(AND(AH26>=$AO$4,AH26<$AI$2),Data!$F$39,LOOKUP(AH26,$AI$1:$AI$5,$AJ$1:$AJ$5)) -> 0 | AM26: =IF(AH26=Data!$G$33,Data!$H$33,IF(AH26=Data!$G$34,Data!$H$34,IF(AH26=Data!$G$35,Data!$H$35,Data!$H$36))) -> 1 | AN26: 0 | AO26: =IF(AN26>0,ROUND(Data!$E$15*AK26*AM26/AK26,0),0) -> 0 | AP26: =IF(AH26>=Data!$G$22,Data!$I$22,IF(AH26>=Data!$G$21,Data!$I$21,IF(AH26>=Data!$F$21,Data!$I$19,0))) -> 8.908 | AQ26: =IF(Data!$D$25<Data!$D$24,Data!$E$24,IF(AI26>=Data!$D$25,Data!$E$25,Data!$E$24)) -> 12 | AR26: 12 | AS26: 0 | AT26: 0 | AU26: =IF(Data!$E$27="Greater Hyderabad",SalaryParticulars!AV26,IF(Data!$E$27="Greater Visakhapatnam",SalaryParticulars!AW26,IF(Data!$E$27="Vijayawada",SalaryParticulars!AX26,IF(Data!$E$27="Other Muncipal Corporations",SalaryParticulars!AY26,0)))) -> 0 | AV26: 0 | AW26: 0 | AX26: 0 | AY26: 0
A27: TOTAL B | D27: =SUM(D22:D26) -> 18035 | E27: 0 | F27: 0 | G27: 1607 | H27: 2615 | I27: 0 | J27: 0 | K27: 0 | L27: 22257 | M27: 0 | N27: 0 | O27: 0 | P27: 0 | Q27: 0 | R27: 0 | S27: 0 | T27: 0 | W27: =SUM(W22:W26) -> 0 | AC27: 14 | AD27: =Data!U44 -> 2015-04-01 | AE27: 2016-04-01 | AF27: =IF(IF(AE27<Data!$I$2,Data!$F$19,IF(AE27<$AD$6,Data!$F$19,AE27))=AF26,Data!$F$19,IF(AE27<Data!$I$2,Data!$F$19,IF(AE27<$AD$6,Data!$F$19,AE27))) -> 2016-04-01 | AG27: 2016-04-01 | AH27: 00:00:00 | AI27: -1 | AJ27: =DAY(DATE(YEAR(AH27),MONTH(AH27)+1,1)-1) -> 31 | AK27: =AI27-AH27+1 -> 0 | AL27: =IF(AND(AH27>=$AO$4,AH27<$AI$2),Data!$F$39,LOOKUP(AH27,$AI$1:$AI$5,$AJ$1:$AJ$5)) ->  | AM27: =IF(AH27=Data!$G$33,Data!$H$33,IF(AH27=Data!$G$34,Data!$H$34,IF(AH27=Data!$G$35,Data!$H$35,Data!$H$36))) -> 1 | AO27: =IF(AN27>0,ROUND(Data!$E$15*AK27*AM27/AK27,0),0) ->  | AP27: =IF(AH27>=Data!$G$22,Data!$I$22,IF(AH27>=Data!$G$21,Data!$I$21,IF(AH27>=Data!$F$21,Data!$I$19,0))) -> 0 | AQ27: =IF(Data!$D$25<Data!$D$24,Data!$E$24,IF(AI27>=Data!$D$25,Data!$E$25,Data!$E$24)) -> 12 | AR27: =IF(AM27=0.5,AQ27*2,AQ27) -> 12 | AS27: =ROUND(AN27*AP27%*AK27/AJ27,0) ->  | AT27: =ROUND(AN27*AQ27%*AK27/AJ27,0) ->  | AU27: =IF(Data!$E$27="Greater Hyderabad",SalaryParticulars!AV27,IF(Data!$E$27="Greater Visakhapatnam",SalaryParticulars!AW27,IF(Data!$E$27="Vijayawada",SalaryParticulars!AX27,IF(Data!$E$27="Other Muncipal Corporations",SalaryParticulars!AY27,0)))) -> 0 | AV27: =IF(AN27=0,0,IF(AN27>18030,525,IF(AN27>13270,350,IF(AN27>8200,300,200)))) ->  | AW27: =IF(AN27=0,0,IF(AN27>18030,350,IF(AN27>13270,220,IF(AN27>8200,160,120)))) -> 
A28: GRAND TOTAL | D28: =SalaryParticulars!D21+D27 -> 427605 | E28: =SalaryParticulars!E21+E27 -> 0 | F28: =SalaryParticulars!F21+F27 -> 0 | G28: =SalaryParticulars!G21+G27 -> 49541 | H28: =SalaryParticulars!H21+H27 -> 61585 | I28: =SalaryParticulars!I21+I27 -> 0 | J28: =SalaryParticulars!J21+J27 -> 0 | K28: =SalaryParticulars!K21+K27 -> 4482 | L28: =SalaryParticulars!L21+L27 -> 543213 | M28: =SalaryParticulars!M21+M27 -> 18000 | N28: =SalaryParticulars!N21+N27 -> 2400 | O28: =SalaryParticulars!O21+O27 -> 720 | P28: =SalaryParticulars!P21+P27 -> 0 | Q28: =SalaryParticulars!Q21+Q27 -> 0 | R28: =SalaryParticulars!R21+R27 -> 5400 | S28: =SalaryParticulars!S21+S27 -> 1080 | T28: =SalaryParticulars!T21+T27 -> 70 | U28: =SalaryParticulars!U21+U27 -> 0 | V28: =SalaryParticulars!V21+V27 -> 0 | W28: =SalaryParticulars!W21+W27 -> 27670 | Y28: =SUM(Y6:Y27) -> 0 | AC28: 15
AC29: 16
A30: Details of pay and allowances received from 1st April 2015 to 31st March 2016 (salaries of march, 2015 to Feb. 2016) including the amounts of supplemental bills received during the above period be furnished. | AC30: 17
A31: 1. Total gross salary income including HRA during the year 2015-16 (as per the statement shown above.) year) | AC31: 18
A32: 2. Amount, if any, received from other sources (other than salary such as arrears etc., during the | S32: Signature of the employee. | AC32: 19
AC33: 20
AC34: 21
AC35: 22
AC36: 23
A53: =ROUND((D28+E28+G28)*10%,0) -> 47715
A54: =H28 -> 61585 | B54: =ROUND((A53+A54)/12,0) -> 9108
A55: =B54-RIGHT(B54,2)+100 -> 9200

Sheet Ascessment form
A1: INCOME TAX 2015-2016
A2: 1. | B2: Name : | D2: =Data!E5 -> G.Venugopal | H2: ID No : | I2: =Data!D4 -> 0926013
B3: Designation : | D3: =Data!E6 -> SGT | H3: Sex : | I3: =IF(Data!E7="M","Male","Female") -> Male | N3: .
B4: Address : | D4: =Data!E8&", "&Data!E9 -> MPP School, NN Colony, Dhone | H4: PAN No : | I4: =Data!E12 -> AJVPG9142R
D5: =Data!E10&" MANDAL" -> Mandal MANDAL
D6: =Data!E11&" DISTRICT" -> Kurnool Dist DISTRICT
A7: 2. | B7: Whether living in own house / rented house : | G7: =IF(Data!E46>0,"Rented House","Own House") -> Rented House
A8: 3. | B8: Pay and allowances as per statement | J8: =SalaryParticulars!L28 -> 543213
A9: 4. | B9: Exemptions :
B10: a) | C10: HRA U/S 10(13A) | H10: =E58 -> 42285
B11: b) | C11: Conveyance Allowance U/s 10(14) | H11: =SalaryParticulars!J28 -> 0
B12: c) | C12: EWF & FF | H12: =SalaryParticulars!T21 -> 70
C13: Total Exemptions 4(a+b+c) | J13: =SUM(H10:H12) -> 42355
A14: 5. | B14: Total Income from Salary Col. (3-4) | J14: =J8-J13 -> 500858
A15: 6. | B15: Less Professional tax U/S 16(iii) (Max. Rs.2500/-) | J15: =IF(SalaryParticulars!N28>2500,2500,SalaryParticulars!N28) -> 2400
A16: 7. | B16: Income chargeable under the Head "SALARIES" Col.(5-6) | J16: =J14-J15 -> 498458
A17: 8. | B17: Income or loss from House Property | J17: =J58 -> 0
A18: 9. | B18: Income from other sources such as Interests from bank and Dividends | J18: =Data!E51 -> 0
A19: 10. | B19: Gross Total Income Col.(7+8+9) | J19: =J16+J17+J18 -> 498458
A20: 11. | B20: DEDUCTIONS Under Chapter VI-A (U/s 80C, 80CCC, 80CCD)
B21: (a) | C21: ZPPF | H21: =SalaryParticulars!M28 -> 18000
B22: (b) | C22: APGLI | H22: =SalaryParticulars!R28 -> 5400
B23: (c) | C23: Group Insurance | H23: =SalaryParticulars!O28 -> 720
B24: (d) | C24: LIC Policies Premium | H24: =Data!E67 -> 0
B25: (e) | C25: =Data!C71 -> Tuition fee for 2 children | H25: =Data!E71 -> 126000
B26: (f) | C26: =Data!C72 -> Repayment of HBA installments. (Principle Amount) | H26: =IF(Data!E72>150000,150000,Data!E72) -> 0
B27: (g) | C27: =Data!C73 -> Public Provident fund | H27: =Data!E73 -> 0
B28: (h) | C28: =Data!C74 -> Amount invested in 5year Post Office Time Deposite A/C | H28: =Data!E74 -> 0
B29: (i) | C29: LIC Pension fund U/s. 80 CCC (Max. Rs. 10000) | H29: =IF(Data!E75<10000,Data!E75,10000) -> 0
B30: (j) | C30: Contribution to any Pension scheme U/s. 80 CCD | H30: =IF(SalaryParticulars!Q28>ROUND(J19*10%,0),ROUND(J19*10%,0),SalaryParticulars!Q28) -> 0
B31: TOTAL (Max. Rs.150000) | H31: =SUM(H21:H30) -> 150120 | J31: =IF(H31>150000,150000,H31) -> 150000
A32: 12. | B32: Rajiv Gandhi Equity Savings Scheme U/s. 80CCG | H32: =Data!E76 -> 0 | J32: =IF(ROUND(H32/2,0)>25000,25000,ROUND(H32/2,0)) -> 0
A33: 13. | B33: OTHER DEDUCTIONS UNDER CHAPTER-VI A.
B34: (a) | C34: Medical Insurance premium (U/S 80 D) | H34: =Data!E83+SalaryParticulars!S28 -> 1080
B35: (b) | C35: Treatment of Handicapped Dependent (U/S.80 DD) | H35: =Data!E84 -> 0
B36: (c) | C36: Expenditure on Medical Treatment of Dependent ( U/S.80 DDB ) | H36: =Data!E85 -> 0
B37: (d) | C37: Interest Paid on Education Loan( 80 E ) | H37: =Data!E86 -> 36800
B38: (e) | C38: Donation to Charitable institution U/S.80 G | H38: =Data!E87+SalaryParticulars!U21 -> 0
B39: (f) | C39: Maintenance of Totally Blind or P.H. U/S.80 U | H39: =Data!E88 -> 0
B40: (g) | C40: Interest earned on Savings Bank Account U/S. 80 TTA | H40: =IF(Data!E89>10000,10000,Data!E89) -> 0
B41: TOTAL | H41: =SUM(H34:H40) -> 37880 | J41: =H41 -> 37880
A42: 14. | B42: Total Deductions (11+12+13) | J42: =J31+J32+J41 -> 187880
A43: 15. | B43: Total Taxable income [ 10-14] | J43: =J19-J42 -> 310578 | L43: =IF(J43<250001,0,IF(J43<500001,(J43-250000)*10%,IF(J43<1000001,(J43-500000)*20%+25000,(J43-1000000)*30%+125000))) -> 6057.8
A44: 16. | B44: a) Income tax on the Taxable Income | J44: =ROUND(L43,0) -> 6058 | L44: =IF(J43<250001,0,IF(J43<500001,(J43-250000)*10%,IF(J43<1000001,(J43-500000)*20%+25000,(J43-1000000)*30%+125000))) -> 6057.8
B45: b) Rebate on the amount of tax payable ( U/S 87A ) | J45: =IF(J44<2000,J44,IF(J43<=500000,2000,0)) -> 2000
B46: c) Surcharge | J46: 0
B47: d) Education Cess @3% | J47: =ROUND((J44-J45)*3/100,0) -> 122
B48: Total Tax Payable | J48: =J44-J45+J46+J47 -> 4180
A49: 17. | B49: Amount of tax already paid if any | J49: =SalaryParticulars!V28 -> 0
A50: 18. | B50: Amount of tax now payable | J50: =J48-J49 -> 4180
A52: Calculation of HRA exemption | G52: Calculation of Income from House Property
A53: a) Actual amount of HRA received | E53: =SalaryParticulars!H28 -> 61585 | G53: a) Gross Annual Rent | J53: =Data!E48 -> 0
A54: b) Actual rent paid, per annum | E54: =12*Data!E46 -> 90000 | G54: b) Municipal Taxes | J54: =Data!E49 -> 0
A55: c) 10 % of pay + DA | E55: =ROUND((SalaryParticulars!D28+SalaryParticulars!E28+SalaryParticulars!G28)*10/100,0) -> 47715 | G55: c) Net Annual value (a)-(b) | J55: =J53-J54 -> 0
A56: d) Excess of rent paid over and above 10 % of Salary ( b ) - ( c ) | E56: =IF(E54-E55<=0,0,E54-E55) -> 42285 | G56: d) Standard Deduction (30% of the Net Annual Value) | J56: =ROUND(J55*30%,0) -> 0
A57: e) 40% of salary (Pay+DA) | E57: =ROUND((SalaryParticulars!D28+SalaryParticulars!E28+SalaryParticulars!G28)*40/100,0) -> 190858 | G57: e) Interest Paid on Housing Loan | J57: =IF(Data!E45="Self Occupaid",IF(Data!E50>200000,200000,Data!E50),0) -> 0
A58: ( a ),( d ) or ( e ) which ever is less | E58: =MIN(E53,E56,E57) -> 42285 | G58: Net Income from the Property (c)-(d)-(e) | J58: =J55-J56-J57 -> 0
B60: Certified that I am incurring an expenditure of Rs | G60: =IF(Data!E46=0,"-Nil-",Data!E46&"/-") -> 7500/- | H60: per month towards house
A61: rent for my residential purpose during the year 2015-16
A62: Certified that the particulars furnished above are true and correct.
G64: Signature of the Government Employee

Sheet house rent reciept
A1: Drawing house rent allowance upto Rs.3000/- per month need not produce of rent receipt. If annual rent paid exceeds Rs 1,00,000 per annum, it is mandatory for the employee to report PAN of the House Owner
A2: RECEIPT OF HOUSE RENT
A3: (Under Section 1 (13-A) of Income Tax Act )
A5: Received a sum of Rs. | C5: =Data!E46*12 -> 90000 | D5: (Rupees
A6: =H124 -> Ninety thousand only
A7: from | B7: =Data!E5 -> G.Venugopal | E7: towards the rent @ Rs. | G7: =Data!E46 -> 7500
A8: per month from | C8: 2015-03-01 | D8: to | E8: 2016-02-01 | F8: in respect of
A9: House No. | C9: situated at
E11: (Affix Revenue Stamp of Rs.1/-)
A17: Date: | E17: Signature of the House Owner
A19: Name:
A20: Address:
A24: PAN No:
H112: =C5 -> 90000 | I112: =(H112-H115)/1000 -> 90 | U112: 1 | V112: One
H113: =(I112-H114)/100 -> 0 | I113: =H113 -> 0 | J113: =RIGHT(I113,2)*1 -> 0 | K113: =(I113-J113)/100 -> 0 | L113: =(J113-RIGHT(J113,1)*1)/10 -> 0 | M113: =RIGHT(I113,1)*1 -> 0 | N113: =IF(L113=U113,W113,IF(L113=U114,W114,IF(L113=U115,W115,IF(L113=U116,W116,IF(L113=U117,W117,IF(L113=U118,W118,IF(L113=U119,W119,IF(L113=U120,W120," ")))))))) ->  | O113: =IF(L113=1," ",IF(M113=U112,V112,IF(M113=U113,V113,IF(M113=U114,V114,IF(M113=U115,V115,IF(M113=U116,V116,IF(M113=U117,V117," "))))))) ->  | P113: =IF(L113=1," ",IF(M113=U118,V118,IF(M113=U119,V119,IF(M113=U120,V120," ")))) ->  | Q113: =IF(L113=0," ",IF(L113>1," ",IF(M113=U113,V123,IF(M113=U114,V124,IF(M113=U115,V125,IF(M113=U116,V126,IF(M113=U117,V127,IF(M113=U118,V128," ")))))))) ->  | R113: =IF(L113=0," ",IF(L113>1," ",IF(M113=U119,V129,IF(M113=U120,V130,IF(M113=U112,V122,IF(M113=0,V121," ")))))) ->  | S113: =IF(L113=0," ","lakh") ->  | T113: =IF(M113=0," ",IF(L113>0," ","lakh")) ->  | U113: 2 | V113: Two | W113: Twenty
H114: =RIGHT(I112,2)*1 -> 90 | I114: =H114 -> 90 | J114: =RIGHT(I114,2)*1 -> 90 | K114: =(I114-J114)/100 -> 0 | L114: =(J114-RIGHT(J114,1)*1)/10 -> 9 | M114: =RIGHT(I114,1)*1 -> 0 | N114: =IF(L114=U113,W113,IF(L114=U114,W114,IF(L114=U115,W115,IF(L114=U116,W116,IF(L114=U117,W117,IF(L114=U118,W118,IF(L114=U119,W119,IF(L114=U120,W120," ")))))))) -> Ninety | O114: =IF(L114=1," ",IF(M114=U112,V112,IF(M114=U113,V113,IF(M114=U114,V114,IF(M114=U115,V115,IF(M114=U116,V116,IF(M114=U117,V117," "))))))) ->  | P114: =IF(L114=1," ",IF(M114=U118,V118,IF(M114=U119,V119,IF(M114=U120,V120," ")))) ->  | Q114: =IF(L114=0," ",IF(L114>1," ",IF(M114=U113,V123,IF(M114=U114,V124,IF(M114=U115,V125,IF(M114=U116,V126,IF(M114=U117,V127,IF(M114=U118,V128," ")))))))) ->  | R114: =IF(L114=0," ",IF(L114>1," ",IF(M114=U119,V129,IF(M114=U120,V130,IF(M114=U112,V122,IF(M114=0,V121," ")))))) ->  | S114: =IF(L114=0," ","thousand") -> thousand | T114: =IF(M114=0," ",IF(L114>0," ","thousand")) ->  | U114: 3 | V114: Three | W114: Thirty
H115: =RIGHT(H112,3)*1 -> 0 | I115: =H115 -> 0 | J115: =ROUND((I115-K116)/100,0) -> 0 | O115: =IF(J115=0," ",IF(J115=U112,V112,IF(J115=U113,V113,IF(J115=U114,V114,IF(J115=U115,V115,IF(J115=U116,V116,IF(J115=U117,V117," "))))))) ->  | P115: =IF(J115=0," ",IF(J115=U118,V118,IF(J115=U119,V119,IF(J115=U120,V120," ")))) ->  | S115: =IF(J115=0," ","hundred") ->  | U115: 4 | V115: Four | W115: Forty
K116: =RIGHT(I115,2)*1 -> 0 | L116: =(K116-RIGHT(K116,1)*1)/10 -> 0 | M116: =RIGHT(I115,1)*1 -> 0 | N116: =IF(L116=U113,W113,IF(L116=U114,W114,IF(L116=U115,W115,IF(L116=U116,W116,IF(L116=U117,W117,IF(L116=U118,W118,IF(L116=U119,W119,IF(L116=U120,W120," ")))))))) ->  | O116: =IF(L116=1," ",IF(M116=U112,V112,IF(M116=U113,V113,IF(M116=U114,V114,IF(M116=U115,V115,IF(M116=U116,V116,IF(M116=U117,V117," "))))))) ->  | P116: =IF(L116=1," ",IF(M116=U118,V118,IF(M116=U119,V119,IF(M116=U120,V120," ")))) ->  | Q116: =IF(L116=0," ",IF(L116>1," ",IF(M116=U113,V123,IF(M116=U114,V124,IF(M116=U115,V125,IF(M116=U116,V126,IF(M116=U117,V127,IF(M116=U118,V128," ")))))))) ->  | R116: =IF(L116=0," ",IF(L116>1," ",IF(M116=U119,V129,IF(M116=U120,V130,IF(M116=U112,V122,IF(M116=0,V121," ")))))) ->  | U116: 5 | V116: Five | W116: Fifty
L117: =L116 -> 0 | M117: =M116 -> 0 | U117: 6 | V117: Six | W117: Sixty
U118: 7 | V118: Seven | W118: Seventy
U119: 8 | V119: Eight | W119: Eighty
H120: =TRIM(N113&" "&O113&" "&P113&" "&Q113&" "&R113&" "&S113&" "&T113) ->  | U120: 9 | V120: Nine | W120: Ninety
H121: =TRIM(N114&" "&O114&" "&P114&" "&Q114&" "&R114&" "&S114&" "&T114) -> Ninety thousand | U121: 10 | V121: Ten
H122: =TRIM(N115&" "&O115&" "&P115&" "&Q115&" "&R115&" "&S115&" "&T115) ->  | U122: 11 | V122: Eleven
H123: =TRIM(N116&" "&O116&" "&P116&" "&Q116&" "&R116) ->  | U123: 12 | V123: Twelve
H124: =IF(H112>0,TRIM(H120&" "&H121&" "&H122&" "&H123)&" only","Zero only") -> Ninety thousand only | U124: 13 | V124: Thirteen
U125: 14 | V125: Fourteen
U126: 15 | V126: Fifteen
U127: 16 | V127: Sixteen
U128: 17 | V128: Seventeen
U129: 18 | V129: Eighteen
U130: 19 | V130: Nineteen
U131: 20 | V131: Twenty
U132: 30 | V132: Thirty
U133: 40 | V133: Forty
U134: 50 | V134: Fifty
U135: 60 | V135: Sixty
U136: 70 | V136: Seventy
U137: 80 | V137: Eighty
U138: 90 | V138: Ninety

Sheet Form 16(page1)
A1: FROM NO. 16
A2: [See rule 31(1)(a)]
A3: Certificate under section 203 of the Income -tax Act,1961 for tax deducted at source
A4: from income chargeable under the head "salaries"
A5: Name and address of the Employer | G5: Name and designation of the Employee
A6: =UPPER(Data!E105)&", "&UPPER(Data!E107) -> J.RAMACHANDRUDU, MEO, DHONE | G6: =UPPER(Data!E5)&", "&Data!E6 -> G.VENUGOPAL, SGT
A7: PAN No. Of the deductor | D7: TAN No. Of the deductor | G7: PAN No. Of the Employee
A8: =UPPER(Data!E109) ->  | D8: =UPPER(Data!E110) ->  | G8: =UPPER(Data!E12) -> AJVPG9142R
A9: Acknowledgement nos. of all quarterly statements of TDS under sub -section (3) of section 200 as by TIN Facilitation center or NSDL web -site.
A10: Quarter | C10: Acknowledgement no. | G10: Period | M10: Assessment Year
G11: From | J11: To
A12: 1 | G12: 2015-04-01 | J12: 2015-06-30 | M12: 2016-17
A13: 2 | G13: 2015-07-01 | J13: 2015-09-30
A14: 3 | G14: 2015-10-01 | J14: 2015-12-31
A15: 4 | G15: 2016-01-01 | J15: 2016-03-31
A16: DETILS OF SALARY PAID AND ANY OTHER INCOME AND TAX DEDUCTED
A17: 1.Gross salary
A18: a)Salary as per provisions contained in section 17 (1) | H18: Rs. | I18: ='Ascessment form'!J8 -> 543213
A19: (b) Value of perquisites under section 17(2)
A20: (as per From No. 12BA, wherever applicable) | H20: Rs. | I20: 0
A21: © Profits in lieu of salary under section 17 (3)
A22: (as per From No. 12BA, wherever applicable) | H22: Rs. | I22: 0
A23: (d) Total | L23: Rs. | M23: =SUM(I18:I22) -> 543213
A24: 2. Less : Allowance to the exempt under section 10
A25: HRA, CA, etc. | H25: Rs. | I25: ='Ascessment form'!J13 -> 42355 | L25: Rs. | M25: =I25 -> 42355
A26: 3. Balance (1-2) | L26: Rs. | M26: =M23-M25 -> 500858
A27: 4. Deductions :
A28: (a) Entertainment Allowance | H28: Rs. | I28: 0
A29: (b) Tax on Employment | H29: Rs. | I29: ='Ascessment form'!J15 -> 2400
A30: 5. Aggregate of 4 (a) and (b) | H30: Rs. | I30: =I28+I29 -> 2400 | L30: Rs. | M30: =I30 -> 2400
A31: 6. Income chargeable under the head 'salaries ' (3 - 5) | L31: Rs. | M31: =M26-M30 -> 498458
A32: 7. Add : Income from Other Sources | L32: Rs. | M32: ='Ascessment form'!J17+'Ascessment form'!J18 -> 0
A33: 8. Gross total income (6+7) | L33: Rs. | M33: =M31+M32 -> 498458
A34: 9. Deductions under chapter VI - A
A35: (A) Sections 80C, 80CCC and 80CCD
A36: Section 80C | D36: Gross amount | H36: Qualifying amount | K36: Deductible Amount
A38: i) | B38: ZPPF/GPF | D38: Rs. | E38: ='Ascessment form'!H21 -> 18000
A39: ii) | B39: APGLI | D39: Rs. | E39: ='Ascessment form'!H22 -> 5400
A40: iii) | B40: Group Insurance | D40: Rs. | E40: ='Ascessment form'!H23 -> 720
A41: iv) | B41: LIC Policies Premium | D41: Rs. | E41: ='Ascessment form'!H24 -> 0
A42: v) | B42: =IF(Data!E71=0," ",Data!C71) -> Tuition fee for 2 children | D42: Rs. | E42: ='Ascessment form'!H25 -> 126000
A43: vi) | B43: =IF(Data!E72=0," ",Data!C72) ->  | D43: Rs. | E43: ='Ascessment form'!H26 -> 0
A44: vii) | B44: =IF(Data!E73=0," ",Data!C73) ->  | D44: Rs. | E44: ='Ascessment form'!H27 -> 0
A45: viii) | B45: =IF(Data!E74=0," ",Data!C74) ->  | D45: Rs. | E45: ='Ascessment form'!H28 -> 0
B46: Total of 80C | D46: Rs. | E46: =SUM(E38:E45) -> 150120 | H46: Rs. | I46: =SUM(E38:E45) -> 150120 | L46: Rs. | M46: =IF(I46>150000,150000,I46) -> 150000
A47: Section 80CCC | D47: Rs. | E47: ='Ascessment form'!H29 -> 0 | H47: Rs. | I47: =E47 -> 0 | L47: Rs. | M47: =I47 -> 0
A48: Section 80CCD | D48: Rs. | E48: ='Ascessment form'!H30 -> 0 | H48: Rs. | I48: =E48 -> 0 | L48: Rs. | M48: =I48 -> 0
A49: Total of Sections 80C, 80CCC and 80CCD | I49: =SUM(I46:I48) -> 150120 | L49: Rs. | M49: =IF(I49>150000,150000,I49) -> 150000
A50: (B) Rajiv Gandhi Equity Savings Scheme U/s. 80CCG | M50: ='Ascessment form'!J32 -> 0

Sheet Form 16(page2)
A1: (C) Other sections (e.g., 80E, 80G etc.) Under Chapter VIA
A2: Deduction | F2: Gross amount | H2: Qualifying amount | J2: Deductible Amount
A3: (a) Section | C3: 80D Medical Insurance | F3: Rs. | G3: ='Ascessment form'!H34 -> 1080 | H3: Rs. | I3: =G3 -> 1080 | J3: Rs. | K3: =I3 -> 1080
A4: (b) Section | C4: 80DD Treatment of Handicapped dependent | F4: Rs. | G4: ='Ascessment form'!H35 -> 0 | H4: Rs. | I4: 0 | J4: Rs. | K4: 0
A5: (c) Section | C5: 80DDB Expenditure on medical treatment | F5: Rs. | G5: ='Ascessment form'!H36 -> 0 | H5: Rs. | I5: 0 | J5: Rs. | K5: 0
A6: (d) Section | C6: 80E Interest paid on Education Loan | F6: Rs. | G6: ='Ascessment form'!H37 -> 36800 | H6: Rs. | I6: 36800 | J6: Rs. | K6: 36800
A7: (e) Section | C7: 80G Donation to Charitable Institution & CMRF | F7: Rs. | G7: ='Ascessment form'!H38 -> 0 | H7: Rs. | I7: =G7 -> 0 | J7: Rs. | K7: 0
A8: (f) Section | C8: 80U Maintenance of Totally Blind or PHC | F8: Rs. | G8: ='Ascessment form'!H39 -> 0 | H8: Rs. | I8: 0 | J8: Rs. | K8: 0
A9: (g) Section | C9: Interest earned on Savings Bank Account U/S. 80 TTA | F9: Rs. | G9: ='Ascessment form'!H40 -> 0 | I9: 0 | K9: 0
A10: Total of Sections 80D, 80DD, 80DDB, 80E, 80G, 80U, 80 TTA | J10: Rs. | K10: =SUM(K3:K9) -> 37880
A11: 10. Aggregate of deductible amounts Under Chapter VI - A | J11: Rs. | K11: ='Form 16(page1)'!M49+K10+'Form 16(page1)'!M50 -> 187880
A12: 11. Total income ( 8 - 10 ) Rs. | J12: Rs. | K12: ='Form 16(page1)'!M33-'Form 16(page2)'!K11 -> 310578
A13: 12. Tax on total income Rs. | J13: Rs. | K13: ='Ascessment form'!J44 -> 6058
A14: 13. Rebate on the amount of tax payable ( U/S 87A ) | J14: Rs. | K14: ='Ascessment form'!J45 -> 2000
A15: 14. Surcharge ( on tax computed at S. NO. 12 ) | J15: Rs. | K15: 0
A16: 15. Education Cess @ 3% on ( tax at S. NO. 12 plus surcharge at S. NO. 13 ) | J16: Rs. | K16: ='Ascessment form'!J47 -> 122
A17: 16. Tax payable (12+13+14 ) Rs. | J17: Rs. | K17: =K13-K14+K15+K16 -> 4180
A18: 17. Relief under section 89 (attach details ) Rs. | J18: Rs. | K18: 0
A19: 18. Tax payable ( 15 - 16 ) Rs. | J19: Rs. | K19: =K17-K18 -> 4180
A20: 19. Less : (a) Tax deducted at source u/s 192 (1) | J20: Rs. | K20: =K19 -> 4180
A21: (b) Tax paid by the employer on behalf of the employee u/s 192 (1 A) on | J21: Rs. | K21: 0
A22: perquisites u/s 17 ( 2 )
A23: 20.Tax payable / refundable ( 17-18 ) | J23: Rs. | K23: =K19-K20 -> 0
A24: DETAILS OF DEDUCTED AND DEPOSITED INTO CENTRAL GOVERNMENT ACCOUNT
A25: (The Employer is to provide transaction - wise details of tax deducted and deposited)
A26: S. No. | B26: TDS | C26: Surcharge | D26: Education Cess | E26: Total tax deposited | F26: Cheque / DD No. (if any) | H26: Date on which tax deposited | J26: Transfer voucher / challan Identification No.
B27: Rs. | C27: Rs. | D27: Rs. | E27: Rs. | H27: (dd / mm / yyyy)
A28: 1 | B28: =SalaryParticulars!V6 -> 0 | C28: 0 | D28: 0 | E28: =SUM(B28:D28) -> 0
A29: 2 | B29: =SalaryParticulars!V7 -> 0 | C29: 0 | D29: 0 | E29: =SUM(B29:D29) -> 0
A30: 3 | B30: =SalaryParticulars!V8 -> 0 | C30: 0 | D30: 0 | E30: 0
A31: 4 | B31: =SalaryParticulars!V9 -> 0 | C31: 0 | D31: 0 | E31: 0
A32: 5 | B32: =SalaryParticulars!V10 -> 0 | C32: 0 | D32: 0 | E32: 0
A33: 6 | B33: =SalaryParticulars!V11 -> 0 | C33: 0 | D33: 0 | E33: 0
A34: 7 | B34: =SalaryParticulars!V12 -> 0 | C34: 0 | D34: 0 | E34: 0
A35: 8 | B35: =SalaryParticulars!V13 -> 0 | C35: 0 | D35: 0 | E35: 0
A36: 9 | B36: =SalaryParticulars!V14 -> 0 | C36: 0 | D36: 0 | E36: 0
A37: 10 | B37: =SalaryParticulars!V15 -> 0 | C37: 0 | D37: 0 | E37: 0
A38: 11 | B38: =SalaryParticulars!V16 -> 0 | C38: 0 | D38: 0 | E38: 0
A39: 12 | B39: ='Ascessment form'!J50 -> 4180 | C39: 0 | D39: 0 | E39: =SUM(B39:D39) -> 4180
A40: Total | B40: =SUM(B28:B39) -> 4180 | C40: =SUM(C28:C39) -> 0 | D40: =SUM(D28:D39) -> 0 | E40: =SUM(E28:E39) -> 4180
A41: =" I, "&Data!E105&", son/ daughter of "&Data!E106&" working in the capacity of "&Data!E107&" (designation) do hereby certify that a sum of Rs."&K20&"/- [ Rupees "&B117&" (in words)] has been deducted at source and paid to the credit of the Central Government. I further certify that the information given above is true and correct based on the books of account documents and other available records." -> I, J.RAMACHANDRUDU, son/ daughter of working in the capacity of MEO, Dhone (designation) do hereby certify that a sum of Rs.4180/- [ Rupees Four thousand One hundred Eighty only (in words)] has been deducted at source and paid to the credit of the Central Government. I further certify that the information given above is true and correct based on the books of account documents and other available records.
A46: Place : | F46: Signature of person responsible for deduction of tax
A47: Date : | F47: Full Name : | H47: =UPPER(Data!E105) -> J.RAMACHANDRUDU
F48: Designation : | H48: =UPPER(Data!E108) -> MEO, DHONE
B60: 2015-06-30
B105: =K20 -> 4180 | C105: =(B105-B108)/1000 -> 4 | O105: 1 | P105: One
B106: =(C105-B107)/100 -> 0 | C106: =B106 -> 0 | D106: =RIGHT(C106,2)*1 -> 0 | E106: =(C106-D106)/100 -> 0 | F106: =(D106-RIGHT(D106,1)*1)/10 -> 0 | G106: =RIGHT(C106,1)*1 -> 0 | H106: =IF(F106=O106,Q106,IF(F106=O107,Q107,IF(F106=O108,Q108,IF(F106=O109,Q109,IF(F106=O110,Q110,IF(F106=O111,Q111,IF(F106=O112,Q112,IF(F106=O113,Q113," ")))))))) ->  | I106: =IF(F106=1," ",IF(G106=O105,P105,IF(G106=O106,P106,IF(G106=O107,P107,IF(G106=O108,P108,IF(G106=O109,P109,IF(G106=O110,P110," "))))))) ->  | J106: =IF(F106=1," ",IF(G106=O111,P111,IF(G106=O112,P112,IF(G106=O113,P113," ")))) ->  | K106: =IF(F106=0," ",IF(F106>1," ",IF(G106=O106,P116,IF(G106=O107,P117,IF(G106=O108,P118,IF(G106=O109,P119,IF(G106=O110,P120,IF(G106=O111,P121," ")))))))) ->  | L106: =IF(F106=0," ",IF(F106>1," ",IF(G106=O112,P122,IF(G106=O113,P123,IF(G106=O105,P115,IF(G106=0,P114," ")))))) ->  | M106: =IF(F106=0," ","lakh") ->  | N106: =IF(G106=0," ",IF(F106>0," ","lakh")) ->  | O106: 2 | P106: Two | Q106: Twenty
B107: =RIGHT(C105,2)*1 -> 4 | C107: =B107 -> 4 | D107: =RIGHT(C107,2)*1 -> 4 | E107: =(C107-D107)/100 -> 0 | F107: =(D107-RIGHT(D107,1)*1)/10 -> 0 | G107: =RIGHT(C107,1)*1 -> 4 | H107: =IF(F107=O106,Q106,IF(F107=O107,Q107,IF(F107=O108,Q108,IF(F107=O109,Q109,IF(F107=O110,Q110,IF(F107=O111,Q111,IF(F107=O112,Q112,IF(F107=O113,Q113," ")))))))) ->  | I107: =IF(F107=1," ",IF(G107=O105,P105,IF(G107=O106,P106,IF(G107=O107,P107,IF(G107=O108,P108,IF(G107=O109,P109,IF(G107=O110,P110," "))))))) -> Four | J107: =IF(F107=1," ",IF(G107=O111,P111,IF(G107=O112,P112,IF(G107=O113,P113," ")))) ->  | K107: =IF(F107=0," ",IF(F107>1," ",IF(G107=O106,P116,IF(G107=O107,P117,IF(G107=O108,P118,IF(G107=O109,P119,IF(G107=O110,P120,IF(G107=O111,P121," ")))))))) ->  | L107: =IF(F107=0," ",IF(F107>1," ",IF(G107=O112,P122,IF(G107=O113,P123,IF(G107=O105,P115,IF(G107=0,P114," ")))))) ->  | M107: =IF(F107=0," ","thousand") ->  | N107: =IF(G107=0," ",IF(F107>0," ","thousand")) -> thousand | O107: 3 | P107: Three | Q107: Thirty
B108: =RIGHT(B105,3)*1 -> 180 | C108: =B108 -> 180 | D108: =ROUND((C108-E109)/100,0) -> 1 | I108: =IF(D108=0," ",IF(D108=O105,P105,IF(D108=O106,P106,IF(D108=O107,P107,IF(D108=O108,P108,IF(D108=O109,P109,IF(D108=O110,P110," "))))))) -> One | J108: =IF(D108=0," ",IF(D108=O111,P111,IF(D108=O112,P112,IF(D108=O113,P113," ")))) ->  | M108: =IF(D108=0," ","hundred") -> hundred | O108: 4 | P108: Four | Q108: Forty
E109: =RIGHT(C108,2)*1 -> 80 | F109: =(E109-RIGHT(E109,1)*1)/10 -> 8 | G109: =RIGHT(C108,1)*1 -> 0 | H109: =IF(F109=O106,Q106,IF(F109=O107,Q107,IF(F109=O108,Q108,IF(F109=O109,Q109,IF(F109=O110,Q110,IF(F109=O111,Q111,IF(F109=O112,Q112,IF(F109=O113,Q113," ")))))))) -> Eighty | I109: =IF(F109=1," ",IF(G109=O105,P105,IF(G109=O106,P106,IF(G109=O107,P107,IF(G109=O108,P108,IF(G109=O109,P109,IF(G109=O110,P110," "))))))) ->  | J109: =IF(F109=1," ",IF(G109=O111,P111,IF(G109=O112,P112,IF(G109=O113,P113," ")))) ->  | K109: =IF(F109=0," ",IF(F109>1," ",IF(G109=O106,P116,IF(G109=O107,P117,IF(G109=O108,P118,IF(G109=O109,P119,IF(G109=O110,P120,IF(G109=O111,P121," ")))))))) ->  | L109: =IF(F109=0," ",IF(F109>1," ",IF(G109=O112,P122,IF(G109=O113,P123,IF(G109=O105,P115,IF(G109=0,P114," ")))))) ->  | O109: 5 | P109: Five | Q109: Fifty
F110: =F109 -> 8 | G110: =G109 -> 0 | O110: 6 | P110: Six | Q110: Sixty
O111: 7 | P111: Seven | Q111: Seventy
O112: 8 | P112: Eight | Q112: Eighty
B113: =TRIM(H106&" "&I106&" "&J106&" "&K106&" "&L106&" "&M106&" "&N106) ->  | O113: 9 | P113: Nine | Q113: Ninety
B114: =TRIM(H107&" "&I107&" "&J107&" "&K107&" "&L107&" "&M107&" "&N107) -> Four thousand | O114: 10 | P114: Ten
B115: =TRIM(H108&" "&I108&" "&J108&" "&K108&" "&L108&" "&M108&" "&N108) -> One hundred | O115: 11 | P115: Eleven
B116: =TRIM(H109&" "&I109&" "&J109&" "&K109&" "&L109) -> Eighty | O116: 12 | P116: Twelve
B117: =IF(B105>0,TRIM(B113&" "&B114&" "&B115&" "&B116)&" only","Zero only") -> Four thousand One hundred Eighty only | O117: 13 | P117: Thirteen
O118: 14 | P118: Fourteen
O119: 15 | P119: Fifteen
O120: 16 | P120: Sixteen
O121: 17 | P121: Seventeen
O122: 18 | P122: Eighteen
O123: 19 | P123: Nineteen
O124: 20 | P124: Twenty
O125: 30 | P125: Thirty
O126: 40 | P126: Forty
O127: 50 | P127: Fifty
O128: 60 | P128: Sixty
O129: 70 | P129: Seventy
O130: 80 | P130: Eighty
O131: 90 | P131: Ninety
